Workbook

Sheet Cover
A1: Grid Services Valuation Model
B4: Prepared for | C4: Prepared by
B11: September 2025
B13: Instructions
B15: View the Valuation Calculator Tool training on the Grid Services Study website.
B16: Start with the green tabs and work through each blue calculation tab, entering user inputs.
B17: Review each blue calculation tab to understand how each value streams are calculated.
B18: Explore the "Dashboard" tab to understand how the selected value streams inform an example compensation structure.
B21: Table of Contents
B24: Sheet | C24: Description
B25: Valuation Framework | C25: Diagram of the valuation framework to illustrate how each value stream flows into the compensation.
B26: Dashboard | C26: Dashboard for User Inputs and Compensation calculations. Valuation user inputs for project-specific data applicable to all valuation calculations. Compensation user inputs to determine customer compensation levels, which are provided as an output in this tab.
B27: Deferral Value Calculation | C27: Calculations for Deferral Value. Deferral Value reflects benefits of delaying investments related to the time value of money.
B28: Bridge to Wires Calculation | C28: Calculations for Bridge to Wires Value. Bridge-to-Wires solutions are designed to bridge the gap between an imminent capacity constraint and the time it takes to complete construction of a traditional infrastructure solution.
B29: EJ Impacts Calculation | C29: Calculations for Environmental Justice Value. Environmental Justice values include an EJ Participant adder to encourage participation by EJ customers and an Air Quality adder to value the benefits of reducing air pollution from backup diesel generation in EJ-designated communities.
B30: ICE Calculator Results | C30: Results from DOE's Interruptible Cost Estimate calculator applied to Bridge to Wires calculation.
B31: Reference Utility Data | C31: Utility-specific data that is applied in the valuation calculations.
B32: Mappings | C32: Dropdown input selections
B33: *Optionality Value is calculated in a separate model and will not feed into the compensation calculation in the pilot Grid Services offerings.
B35: Cell Style Legend
B37: Cells in this Valuation Model are color-coded to indicate intent:
B39: User Inputs
B40: Dropdown User Inputs
B41: Hard-coded input - Do not modify
B42: Calculations or Fixed Values - Do not modify
B43: Calculations (different formula than neighboring cells) - Do not modify
B44: Outputs - Do not modify
B46: Table Headers
B47: Table Sub-Headers
B48: Table Index (Row Descriptions)

Sheet Valuation Framework
B4: Valuation Framework
B6: Rate Impact value streams provide the primary basis for determining valuing grid services and establishing baseline compensation
B7: Separate EJ Participant and Air Quality Adders may be considered in compensation design to further support EJ participation or benefits
F43: *Other rate impact and non-rate impact value streams may be assessed in the future when better data and quantification methods are made available. Other value steams may include optionality value, the value of accelerated interconnections, or avoided construction-related impacts.

Sheet Dashboard
B4: Valuation User Inputs
B6: Project-Specific Planning Inputs | D6: Explanation
B7: In-Service Date of Planned Upgrade (by Jan 1) | C7: 2032 | D7: Planned in-service year for a traditional asset upgrade if no deferral solution is implemented. A non-blank user input overrides use of the specified load forecast and capacity limit
B8: Adjusted Plant-in-service Year (by Jan 1) | C8: 2035 | D8: The new required in-service year for the traditional asset upgrade once a deferral solution has been implemented. A non-blank user input overrides use of the specified load forecast and capacity limit plus DER impact
B9: Years of Deferral | C9: 3
B11: Capacity Need for Load Relief (MW) | C11: 2025 | D11: 2026 | E11: 2027 | F11: 2028 | G11: 2029 | H11: 2030 | I11: 2031 | J11: 2032 | K11: 2033 | L11: 2034 | M11: 2035 | N11: 2036 | O11: 2037 | P11: 2038 | Q11: 2039 | R11: 2040 | S11: 2041 | T11: 2042 | U11: 2043 | V11: 2044 | W11: 2045 | X11: 2046 | Y11: 2047 | Z11: 2048 | AA11: 2049 | AB11: 2050
B12: Annual Capacity Need | J12: 1.434328599 | K12: 4.81013739 | L12: 8.270341402
B13: Forecasted capacity need at deferral or bridge-to-wires project location
B16: Example - Grid Services Compensation User Inputs & Calculations
B18: The compensation user inputs and calculations take the outputs from the valuation calculation to determine what the total compensation for DERs would be for the example location.
B20: Compensation Structure Inputs | D20: Explanation
B21: Capacity Constraint Scenario | C21: Deferral | D21: Is this a deferral or bridge-to-wires solution?
B22: EJ Customer Participation (% of Capacity) | C22: 0.12 | D22: How much capacity is enrolled to EJ customers? -- EJ participation adder will apply to these participants for Deferral and Bridge-to-Wires solutions
B23: Localized EJ Impact | C23: Yes | D23: Is the project in an Air Quality district? -- If yes, localized EJ impact adder will be applied to Bridge-to-Wires solutions
B24: Reservation Payment | C24: Yes | D24: Would you like to provide a reservation payment, i.e., a payment for years before the solution's capacity is needed? In this example, the reservation payment stops when activation payment begins. In practice, structures may vary
B25: Reservation % of Total Value | C25: 0.1 | D25: Used to set a theoretical reservation payment as a % of the total compensation.
B26: Reservation Payment Start Year | C26: 2027 | D26: Must be before "Adjusted plant-in-service start year"
B27: Enrollment Reserve Margin | C27: 0.25 | D27: How much more capacity should be enrolled over the capacity need? This input is only applied within the Compensation Calculation
B29: Total Compensation | C29: Guideline Ceiling | D29: User Input Compensation
B30: Total Grid Service Compensation Available | C30: =_xlfn.IFS($C$21="Deferral",'Deferral Value Calculation'!$C$62,$C$21="Bridge-to-Wires",(('Bridge to Wires Calculation'!$E$57+IF($C$23="Yes",'EJ Impacts Calculation'!$E$25))*MIN(IF(Dashboard!$D$12:$AC$12>0, Dashboard!$D$12:$AC$12))*1000)) -> 4176884.576 | D30: =SUM(D31:D32) -> 1253065.373
B31: Value allocated to all non-EJ Participants (Total $) | C31: =C30-C32 -> 3589510.182 | D31: =D33*(MAX(Dashboard!$C$12:$AB$12)*(1+$C$27)*Dashboard!$C$9*1000)*(1-$C$22) -> 1076853.055
B32: Value allocated to all EJ Participants (Total $) | C32: =C30/(1+(1-C22)/((1+'EJ Impacts Calculation'!$E$8)*C22)) -> 587374.3934 | D32: =D34*(MAX(Dashboard!$C$12:$AB$12)*(1+$C$27)*Dashboard!$C$9*1000)*$C$22 -> 176212.318
B33: Baseline (Non-EJ Participant) Incentive ($/kW-yr) | C33: =C31/(MAX(Dashboard!$C$12:$AB$12)*(1+$C$27)*(1-$C$22)*Dashboard!$C$9*1000) -> 131.5218206 | D33: =C33*0.3 -> 39.45654618 | E33: User should input a value in the yellow cell which is between zero and the Guideline Ceiling for the Baseline incentive, less any expected costs for program administration. This will form the present value basis for compensation. The actual dollar value issued in individual years will vary from this input due to discounting and any reservation payments.
B34: EJ Participant Incentive ($/kW-yr) | C34: =C33*(1+'EJ Impacts Calculation'!$E$8) -> 157.8261847 | D34: =D33*(1+'EJ Impacts Calculation'!$E$8) -> 47.34785542 | E34: Calculated as the Baseline Incentive * (1 + EJ Participant adder). Incentives shown in this table do not account for enrollment reserve margins
B35: The guideline ceiling is to be regarded as an upper bound and is based on the value provided to the distribution grid, adjusted for EJ adders. To avoid a cost shift, actual compensation must be lower than this value, minus program and sunk costs. Cost shifts may still occur if the Value of Lost Load is applied in B2W scenarios and the guideline ceiling is used
B37: Net Benefit Shared with Ratepayers
B38: Total $ | C38: =C30-D30 -> 2923819.203 | D38: This core output value (less costs of administration) reflects the net benefit that DER grid services would be providing to ratepayers
B39: High positive values put downward pressure on rates. Low or negative values would indicate that ratepayers are subsidizing the program (when factoring in additional program administration or sunk costs)
B42: Example - Grid Services Compensation Calculation | E42: The below represents one potential compensation structure designed around the user inputs above. This does not reflect an actual grid services offering
C44: 2025 | D44: 2026 | E44: 2027 | F44: 2028 | G44: 2029 | H44: 2030 | I44: 2031 | J44: 2032 | K44: 2033 | L44: 2034 | M44: 2035 | N44: 2036 | O44: 2037 | P44: 2038 | Q44: 2039 | R44: 2040 | S44: 2041 | T44: 2042 | U44: 2043 | V44: 2044 | W44: 2045 | X44: 2046 | Y44: 2047 | Z44: 2048 | AA44: 2049 | AB44: 2050
B45: Discounting Index | C45: =1/(1+discount_rate_nom)^(C$44-$C$44) -> 1 | D45: 0.9259259259 | E45: 0.8573388203 | F45: 0.793832241 | G45: 0.7350298528 | H45: 0.680583197 | I45: 0.6301696269 | J45: 0.5834903953 | K45: 0.5402688845 | L45: 0.5002489671 | M45: 0.4631934881 | N45: 0.4288828593 | O45: 0.3971137586 | P45: 0.3676979247 | Q45: 0.3404610414 | R45: 0.315241705 | S45: 0.2918904676 | T45: 0.2702689514 | U45: 0.2502490291 | V45: 0.231712064 | W45: 0.2145482074 | X45: 0.1986557476 | Y45: 0.183940507 | Z45: 0.1703152843 | AA45: 0.1576993373 | AB45: 0.1460179049
B46: Reservation Payment Years | C46: =IF(AND(C$44>=$C$26, C$44<Dashboard!$C$7),1,0) -> 0 | D46: =IF(AND(D$44>=$C$26, D$44<Dashboard!$C$7),1,0) -> 0 | E46: =IF(AND(E$44>=$C$26, E$44<Dashboard!$C$7),1,0) -> 1 | F46: =IF(AND(F$44>=$C$26, F$44<Dashboard!$C$7),1,0) -> 1 | G46: =IF(AND(G$44>=$C$26, G$44<Dashboard!$C$7),1,0) -> 1 | H46: =IF(AND(H$44>=$C$26, H$44<Dashboard!$C$7),1,0) -> 1 | I46: =IF(AND(I$44>=$C$26, I$44<Dashboard!$C$7),1,0) -> 1 | J46: =IF(AND(J$44>=$C$26, J$44<Dashboard!$C$7),1,0) -> 0 | K46: =IF(AND(K$44>=$C$26, K$44<Dashboard!$C$7),1,0) -> 0 | L46: =IF(AND(L$44>=$C$26, L$44<Dashboard!$C$7),1,0) -> 0 | M46: =IF(AND(M$44>=$C$26, M$44<Dashboard!$C$7),1,0) -> 0 | N46: =IF(AND(N$44>=$C$26, N$44<Dashboard!$C$7),1,0) -> 0 | O46: =IF(AND(O$44>=$C$26, O$44<Dashboard!$C$7),1,0) -> 0 | P46: =IF(AND(P$44>=$C$26, P$44<Dashboard!$C$7),1,0) -> 0 | Q46: =IF(AND(Q$44>=$C$26, Q$44<Dashboard!$C$7),1,0) -> 0 | R46: =IF(AND(R$44>=$C$26, R$44<Dashboard!$C$7),1,0) -> 0 | S46: =IF(AND(S$44>=$C$26, S$44<Dashboard!$C$7),1,0) -> 0 | T46: =IF(AND(T$44>=$C$26, T$44<Dashboard!$C$7),1,0) -> 0 | U46: =IF(AND(U$44>=$C$26, U$44<Dashboard!$C$7),1,0) -> 0 | V46: =IF(AND(V$44>=$C$26, V$44<Dashboard!$C$7),1,0) -> 0 | W46: =IF(AND(W$44>=$C$26, W$44<Dashboard!$C$7),1,0) -> 0 | X46: =IF(AND(X$44>=$C$26, X$44<Dashboard!$C$7),1,0) -> 0 | Y46: =IF(AND(Y$44>=$C$26, Y$44<Dashboard!$C$7),1,0) -> 0 | Z46: =IF(AND(Z$44>=$C$26, Z$44<Dashboard!$C$7),1,0) -> 0 | AA46: =IF(AND(AA$44>=$C$26, AA$44<Dashboard!$C$7),1,0) -> 0 | AB46: =IF(AND(AB$44>=$C$26, AB$44<Dashboard!$C$7),1,0) -> 0
B47: Activation Payment Years | C47: =IF(C$44>=Dashboard!$C$7,IF(C$44<=Dashboard!$C$7+Dashboard!$C$9-1,1,0),0) -> 0 | D47: =IF(D$44>=Dashboard!$C$7,IF(D$44<=Dashboard!$C$7+Dashboard!$C$9-1,1,0),0) -> 0 | E47: =IF(E$44>=Dashboard!$C$7,IF(E$44<=Dashboard!$C$7+Dashboard!$C$9-1,1,0),0) -> 0 | F47: =IF(F$44>=Dashboard!$C$7,IF(F$44<=Dashboard!$C$7+Dashboard!$C$9-1,1,0),0) -> 0 | G47: =IF(G$44>=Dashboard!$C$7,IF(G$44<=Dashboard!$C$7+Dashboard!$C$9-1,1,0),0) -> 0 | H47: =IF(H$44>=Dashboard!$C$7,IF(H$44<=Dashboard!$C$7+Dashboard!$C$9-1,1,0),0) -> 0 | I47: =IF(I$44>=Dashboard!$C$7,IF(I$44<=Dashboard!$C$7+Dashboard!$C$9-1,1,0),0) -> 0 | J47: =IF(J$44>=Dashboard!$C$7,IF(J$44<=Dashboard!$C$7+Dashboard!$C$9-1,1,0),0) -> 1 | K47: =IF(K$44>=Dashboard!$C$7,IF(K$44<=Dashboard!$C$7+Dashboard!$C$9-1,1,0),0) -> 1 | L47: =IF(L$44>=Dashboard!$C$7,IF(L$44<=Dashboard!$C$7+Dashboard!$C$9-1,1,0),0) -> 1 | M47: =IF(M$44>=Dashboard!$C$7,IF(M$44<=Dashboard!$C$7+Dashboard!$C$9-1,1,0),0) -> 0 | N47: =IF(N$44>=Dashboard!$C$7,IF(N$44<=Dashboard!$C$7+Dashboard!$C$9-1,1,0),0) -> 0 | O47: =IF(O$44>=Dashboard!$C$7,IF(O$44<=Dashboard!$C$7+Dashboard!$C$9-1,1,0),0) -> 0 | P47: =IF(P$44>=Dashboard!$C$7,IF(P$44<=Dashboard!$C$7+Dashboard!$C$9-1,1,0),0) -> 0 | Q47: =IF(Q$44>=Dashboard!$C$7,IF(Q$44<=Dashboard!$C$7+Dashboard!$C$9-1,1,0),0) -> 0 | R47: =IF(R$44>=Dashboard!$C$7,IF(R$44<=Dashboard!$C$7+Dashboard!$C$9-1,1,0),0) -> 0 | S47: =IF(S$44>=Dashboard!$C$7,IF(S$44<=Dashboard!$C$7+Dashboard!$C$9-1,1,0),0) -> 0 | T47: =IF(T$44>=Dashboard!$C$7,IF(T$44<=Dashboard!$C$7+Dashboard!$C$9-1,1,0),0) -> 0 | U47: =IF(U$44>=Dashboard!$C$7,IF(U$44<=Dashboard!$C$7+Dashboard!$C$9-1,1,0),0) -> 0 | V47: =IF(V$44>=Dashboard!$C$7,IF(V$44<=Dashboard!$C$7+Dashboard!$C$9-1,1,0),0) -> 0 | W47: =IF(W$44>=Dashboard!$C$7,IF(W$44<=Dashboard!$C$7+Dashboard!$C$9-1,1,0),0) -> 0 | X47: =IF(X$44>=Dashboard!$C$7,IF(X$44<=Dashboard!$C$7+Dashboard!$C$9-1,1,0),0) -> 0 | Y47: =IF(Y$44>=Dashboard!$C$7,IF(Y$44<=Dashboard!$C$7+Dashboard!$C$9-1,1,0),0) -> 0 | Z47: =IF(Z$44>=Dashboard!$C$7,IF(Z$44<=Dashboard!$C$7+Dashboard!$C$9-1,1,0),0) -> 0 | AA47: =IF(AA$44>=Dashboard!$C$7,IF(AA$44<=Dashboard!$C$7+Dashboard!$C$9-1,1,0),0) -> 0 | AB47: =IF(AB$44>=Dashboard!$C$7,IF(AB$44<=Dashboard!$C$7+Dashboard!$C$9-1,1,0),0) -> 0
B48: Capacity Enrolled* | C48: =IF(OR(C$46=1, C$47=1), MAX(Dashboard!$C$12:$AB$12), 0)*(1+$C$27) -> 0 | D48: =IF(OR(D$46=1, D$47=1), MAX(Dashboard!$C$12:$AB$12), 0)*(1+$C$27) -> 0 | E48: =IF(OR(E$46=1, E$47=1), MAX(Dashboard!$C$12:$AB$12), 0)*(1+$C$27) -> 10.33792675 | F48: =IF(OR(F$46=1, F$47=1), MAX(Dashboard!$C$12:$AB$12), 0)*(1+$C$27) -> 10.33792675 | G48: =IF(OR(G$46=1, G$47=1), MAX(Dashboard!$C$12:$AB$12), 0)*(1+$C$27) -> 10.33792675 | H48: =IF(OR(H$46=1, H$47=1), MAX(Dashboard!$C$12:$AB$12), 0)*(1+$C$27) -> 10.33792675 | I48: =IF(OR(I$46=1, I$47=1), MAX(Dashboard!$C$12:$AB$12), 0)*(1+$C$27) -> 10.33792675 | J48: =IF(OR(J$46=1, J$47=1), MAX(Dashboard!$C$12:$AB$12), 0)*(1+$C$27) -> 10.33792675 | K48: =IF(OR(K$46=1, K$47=1), MAX(Dashboard!$C$12:$AB$12), 0)*(1+$C$27) -> 10.33792675 | L48: =IF(OR(L$46=1, L$47=1), MAX(Dashboard!$C$12:$AB$12), 0)*(1+$C$27) -> 10.33792675 | M48: =IF(OR(M$46=1, M$47=1), MAX(Dashboard!$C$12:$AB$12), 0)*(1+$C$27) -> 0 | N48: =IF(OR(N$46=1, N$47=1), MAX(Dashboard!$C$12:$AB$12), 0)*(1+$C$27) -> 0 | O48: =IF(OR(O$46=1, O$47=1), MAX(Dashboard!$C$12:$AB$12), 0)*(1+$C$27) -> 0 | P48: =IF(OR(P$46=1, P$47=1), MAX(Dashboard!$C$12:$AB$12), 0)*(1+$C$27) -> 0 | Q48: =IF(OR(Q$46=1, Q$47=1), MAX(Dashboard!$C$12:$AB$12), 0)*(1+$C$27) -> 0 | R48: =IF(OR(R$46=1, R$47=1), MAX(Dashboard!$C$12:$AB$12), 0)*(1+$C$27) -> 0 | S48: =IF(OR(S$46=1, S$47=1), MAX(Dashboard!$C$12:$AB$12), 0)*(1+$C$27) -> 0 | T48: =IF(OR(T$46=1, T$47=1), MAX(Dashboard!$C$12:$AB$12), 0)*(1+$C$27) -> 0 | U48: =IF(OR(U$46=1, U$47=1), MAX(Dashboard!$C$12:$AB$12), 0)*(1+$C$27) -> 0 | V48: =IF(OR(V$46=1, V$47=1), MAX(Dashboard!$C$12:$AB$12), 0)*(1+$C$27) -> 0 | W48: =IF(OR(W$46=1, W$47=1), MAX(Dashboard!$C$12:$AB$12), 0)*(1+$C$27) -> 0 | X48: =IF(OR(X$46=1, X$47=1), MAX(Dashboard!$C$12:$AB$12), 0)*(1+$C$27) -> 0 | Y48: =IF(OR(Y$46=1, Y$47=1), MAX(Dashboard!$C$12:$AB$12), 0)*(1+$C$27) -> 0 | Z48: =IF(OR(Z$46=1, Z$47=1), MAX(Dashboard!$C$12:$AB$12), 0)*(1+$C$27) -> 0 | AA48: =IF(OR(AA$46=1, AA$47=1), MAX(Dashboard!$C$12:$AB$12), 0)*(1+$C$27) -> 0 | AB48: =IF(OR(AB$46=1, AB$47=1), MAX(Dashboard!$C$12:$AB$12), 0)*(1+$C$27) -> 0
B49: *Capacity enrolled reflects the maximum capacity need + the enrollment reserve margin. This ensures that the location has sufficient capacity to avoid a shortfall and results in equal payments for reservation or activation payments across years rather than diminishing the $/kW payment. If less capacity is actually enrolled, the lower payout will result in ratepayer savings.
B53: Example Compensation Structure
B55: Non- EJ Participant
B56: Reservation paid ($) | C56: =IF(C46, $C$25*$D$31/SUMPRODUCT($C$45:$AB$45,$C46:$AB46), 0) -> 0 | D56: =IF(D46, $C$25*$D$31/SUMPRODUCT($C$45:$AB$45,$C46:$AB46), 0) -> 0 | E56: 29128.1182 | F56: 29128.1182 | G56: 29128.1182 | H56: 29128.1182 | I56: 29128.1182 | J56: 0 | K56: 0 | L56: 0 | M56: 0 | N56: 0 | O56: 0 | P56: 0 | Q56: 0 | R56: 0 | S56: 0 | T56: 0 | U56: 0 | V56: 0 | W56: 0 | X56: 0 | Y56: 0 | Z56: 0 | AA56: 0 | AB56: 0 | AD56: Check NPV of spend = Max spend
B57: Activation Paid ($) | C57: =IF(C47, (1-$C$25)*$D$31/SUMPRODUCT($C$45:$AB$45,$C47:$AB47), 0) -> 0 | D57: =IF(D47, (1-$C$25)*$D$31/SUMPRODUCT($C$45:$AB$45,$C47:$AB47), 0) -> 0 | E57: 0 | F57: 0 | G57: 0 | H57: 0 | I57: 0 | J57: 596775.1402 | K57: 596775.1402 | L57: 596775.1402 | M57: 0 | N57: 0 | O57: 0 | P57: 0 | Q57: 0 | R57: 0 | S57: 0 | T57: 0 | U57: 0 | V57: 0 | W57: 0 | X57: 0 | Y57: 0 | Z57: 0 | AA57: 0 | AB57: 0 | AD57: =(NPV(discount_rate_nom,$C$56:$AB$56)*(1+discount_rate_nom)+NPV(discount_rate_nom,$C$57:$AB$57)*(1+discount_rate_nom)) -> 1076853.055 | AE57: =IF(ROUND(AD57, 1)=ROUND($D$31, 1), "Yes", "Error") -> Yes
B58: Reservation Payment ($/kW) | C58: =IF(C$46,C56/(C$48*(1-$C$22)*1000),0) -> 0 | D58: 0 | E58: =IF(E$46,E56/(E$48*(1-$C$22)*1000),0) -> 3.20181552 | F58: 3.20181552 | G58: 3.20181552 | H58: 3.20181552 | I58: 3.20181552 | J58: 0 | K58: 0 | L58: 0 | M58: 0 | N58: 0 | O58: 0 | P58: 0 | Q58: 0 | R58: 0 | S58: 0 | T58: 0 | U58: 0 | V58: 0 | W58: 0 | X58: 0 | Y58: 0 | Z58: 0 | AA58: 0 | AB58: 0 | AD58: =NPV('Deferral Value Calculation'!$C$53,$C56:$AB56)*(1+'Deferral Value Calculation'!$C$53) -> 107685.3055 | AE58: =AD58/$D$31 -> 0.1
B59: Activation Payment ($/kW) | C59: =IF(C$47,C57/(C$48*(1-$C$22)*1000),0) -> 0 | D59: 0 | E59: 0 | F59: 0 | G59: 0 | H59: 0 | I59: 0 | J59: 65.5986045 | K59: 65.5986045 | L59: 65.5986045 | M59: 0 | N59: 0 | O59: 0 | P59: 0 | Q59: 0 | R59: 0 | S59: 0 | T59: 0 | U59: 0 | V59: 0 | W59: 0 | X59: 0 | Y59: 0 | Z59: 0 | AA59: 0 | AB59: 0 | AD59: =NPV('Deferral Value Calculation'!$C$53,$C57:$AB57)*(1+'Deferral Value Calculation'!$C$53) -> 969167.7492 | AE59: =AD59/$D$31 -> 0.9
B61: EJ Participant
B62: Reservation paid ($) | C62: =IF(C46, $C$25*$D$32/SUMPRODUCT($C$45:$AB$45,$C46:$AB46), 0) -> 0 | D62: 0 | E62: 4766.419342 | F62: 4766.419342 | G62: 4766.419342 | H62: 4766.419342 | I62: 4766.419342 | J62: 0 | K62: 0 | L62: 0 | M62: 0 | N62: 0 | O62: 0 | P62: 0 | Q62: 0 | R62: 0 | S62: 0 | T62: 0 | U62: 0 | V62: 0 | W62: 0 | X62: 0 | Y62: 0 | Z62: 0 | AA62: 0 | AB62: 0 | AD62: Check NPV of spend = Max spend
B63: Activation Paid ($) | C63: =IF(C47, (1-$C$25)*$D$32/SUMPRODUCT($C$45:$AB$45,$C47:$AB47), 0) -> 0 | D63: 0 | E63: 0 | F63: 0 | G63: 0 | H63: 0 | I63: 0 | J63: 97654.11385 | K63: 97654.11385 | L63: 97654.11385 | M63: 0 | N63: 0 | O63: 0 | P63: 0 | Q63: 0 | R63: 0 | S63: 0 | T63: 0 | U63: 0 | V63: 0 | W63: 0 | X63: 0 | Y63: 0 | Z63: 0 | AA63: 0 | AB63: 0 | AD63: =((1+discount_rate_nom)*NPV(discount_rate_nom,$C$62:$AB$62) +(1+discount_rate_nom)*NPV(discount_rate_nom,$C$63:$AB$63)) -> 176212.318 | AE63: =IF(((1+discount_rate_nom)*NPV(discount_rate_nom,$C$62:$AB$62) +(1+discount_rate_nom)*NPV(discount_rate_nom,$C$63:$AB$63))=$D$32,"Yes","Error") -> Yes
B64: Reservation Payment ($/kW) | C64: =IF(C$46,C62/(C$48*$C$22*1000),0) -> 0 | D64: 0 | E64: 3.842178624 | F64: 3.842178624 | G64: 3.842178624 | H64: 3.842178624 | I64: 3.842178624 | J64: 0 | K64: 0 | L64: 0 | M64: 0 | N64: 0 | O64: 0 | P64: 0 | Q64: 0 | R64: 0 | S64: 0 | T64: 0 | U64: 0 | V64: 0 | W64: 0 | X64: 0 | Y64: 0 | Z64: 0 | AA64: 0 | AB64: 0 | AD64: =NPV('Deferral Value Calculation'!$C$53,$C62:$AB62)*(1+'Deferral Value Calculation'!$C$53) -> 17621.2318 | AE64: =AD64/$D$32 -> 0.1
B65: Activation Payment ($/kW) | C65: =IF(C$48,C63/(C$48*$C$22*1000),0) -> 0 | D65: 0 | E65: 0 | F65: 0 | G65: 0 | H65: 0 | I65: 0 | J65: 78.7183254 | K65: 78.7183254 | L65: 78.7183254 | M65: 0 | N65: 0 | O65: 0 | P65: 0 | Q65: 0 | R65: 0 | S65: 0 | T65: 0 | U65: 0 | V65: 0 | W65: 0 | X65: 0 | Y65: 0 | Z65: 0 | AA65: 0 | AB65: 0 | AD65: =NPV('Deferral Value Calculation'!$C$53,$C63:$AB63)*(1+'Deferral Value Calculation'!$C$53) -> 158591.0862 | AE65: =AD65/$D$32 -> 0.9

Sheet Deferral Value Calculation
B3: Deferral Value Stream
B6: Deferral Value reflects benefits of delaying investments related to the time value of money.
B40: Deferral Value Calculation
B42: ILLUSTRATIVE INPUTS. All inputs included are illustrative only, used to indicate calculation methodology rather than actual deferral value inputs and results. Approaches applied by each EDC may vary slightly and EDC inputs will be aligned to approved filings.
B44: Note: The 'Counterfactual' investment or upgrade refers to the investment that is being deferred through the use of DERs to provide grid services.
B45: Project Inputs | D45: User Input (Override) | E45: Example 1 | F45: Example 2 | G45: Example 3 | I45: Explanation
B46: Project Example | C46: Example 1 | I46: Selection of the capital cost value to use. If any value is entered in cell D17, this selection will be overridden
B47: Capital cost | C47: =IF(D47<>"",D47,INDEX($E47:$G47, , MATCH($C$46, $E$45:$G$45, 0))) -> 100000000 | E47: 100000000 | F47: 40000000 | G47: 400000000 | I47: Capital cost of a counterfactual investment to be deferred at a given location. Examples are intended to provide an illustrative range of potential costs. Users may use one of these example values or input their own in column D
B48: Useful life (years) | C48: =IF(D48<>"", D48, 40) -> 40 | I48: Useful life of the original utility asset. This is used to determine depreciation and the year of equipment replacement. The default value is 40 years, representing average life of utility equipment, but may be overridden in column D
B49: Depreciation rate | C49: =(C47/C48)/C47 -> 0.025 | D49: Calculation - no input | I49: Allocation of the capital cost over the useful life of the asset, based on expected Useful life.
B50: Annual revenue requirement % allocator | C50: =IF(D50<>"", D50, 12.5%) -> 0.125 | I50: Utility Annualized Revenue Requirement Value. Default is set to 12.5%
B51: Distribution Line Loss Factor | C51: =IF(D51<>"", D51, 9.77%) -> 0.0977 | I51: Marginal distribution line losses. The default value is 9.77%, based on multiplying the average line loss factors for each EDC by 1.5 to estimate marginal losses
B52: Escalation Rate (Nominal) | C52: =IF(D52<>"", D52, 6%) -> 0.06 | I52: E3 recommends a range from 2% - 6%. The Handy-Whitman index has recently indicated utility capital costs escalating at ~6%/yr.
B53: Discount Rate (Nominal) | C53: =IF(D53<>"", D53, 8%) -> 0.08 | I53: Representative weighted average cost of capital (WACC) for EDCs. Default is set to 8% nominal
B54: In-Service Date of Planned Upgrade | C54: =Dashboard!$C$7 -> 2032 | D54: Entered on Dashboard Tab
B55: Adjusted Plant-in-service Year | C55: =Dashboard!C8 -> 2035 | D55: Entered on Dashboard Tab
B56: Years of Deferral | C56: =Dashboard!C9 -> 3 | D56: Calculation - no input
B57: Original Asset Install Year | C57: =IF(D57<>"", D57, 2015) -> 2015 | I57: Year the original utility asset was installed. This is used alongside the Useful life to determine the year of equipment replacement. The default value is 2015 but may be overridden in column D
B58: Year of Existing Equipment Replacement (if any) | C58: ='Deferral Value Calculation'!C57+'Deferral Value Calculation'!C48 -> 2055 | D58: Calculation - no input | I58: The year that the existing utility asset at a given location would require replacement if no upgrade were necessary
B59: Max No. of Deferral Years | C59: =IF(C58="", "",C58-C54) -> 23 | D59: Calculation - no input | I59: The maximum number of years a deferral could possibly provide value by delaying the cost of an upgrade. This is the difference between In-Service Date of a counterfactual planned upgrade and the year of existing equipment replacement
B62: Total Deferral Value ($) | C62: =SUMIFS($D$66:$D$91, $B$66:$B$91, $C$56) -> 4176884.576
B63: Unitized Deferral Value ($/kW-yr) | C63: =SUMIFS($F$66:$F$91, $B$66:$B$91, $C$56) -> 168.3479304 | H63: Revenue Requirement
B65: Years of Deferral | C65: NPV of Revenue Requirement | D65: Total Deferral Value ($) | E65: Capacity Provided by DERs (MW)* | F65: Unitized Deferral Value ($/kW-yr) | H65: 2025 | I65: =H65+1 -> 2026 | J65: 2027 | K65: 2028 | L65: 2029 | M65: =L65+1 -> 2030 | N65: 2031 | O65: 2032 | P65: 2033 | Q65: 2034 | R65: 2035 | S65: 2036 | T65: 2037 | U65: 2038 | V65: 2039 | W65: 2040 | X65: 2041 | Y65: 2042 | Z65: 2043 | AA65: 2044 | AB65: 2045 | AC65: 2046 | AD65: 2047 | AE65: 2048 | AF65: 2049 | AG65: 2050 | AH65: 2051 | AI65: 2052 | AJ65: 2053 | AK65: 2054 | AL65: 2055 | AM65: 2056 | AN65: 2057 | AO65: =AN65+1 -> 2058 | AP65: 2059 | AQ65: 2060 | AR65: 2061 | AS65: 2062 | AT65: 2063 | AU65: 2064 | AV65: 2065 | AW65: 2066 | AX65: 2067 | AY65: 2068 | AZ65: 2069 | BA65: 2070 | BB65: 2071 | BC65: 2072 | BD65: 2073 | BE65: 2074 | BF65: 2075 | BG65: 2076 | BH65: 2077 | BI65: 2078 | BJ65: 2079 | BK65: 2080
B66: 0 | C66: =NPV($C$53,I66:BK66)+H66 -> 76593566.18 | D66: =IF(B66<=$C$59, $C$66-C66, 0) -> 0 | E66: =IFERROR(INDEX(Dashboard!$C$12:$AB$12, , MATCH($B66+$C$54-1, Dashboard!$C$11:$AB$11, 0)), 0) -> 0 | F66: =IFERROR(D66/E66/B66/1000, 0) -> 0 | H66: =IF(H$65<($C$54+$B66),0,IF((H$65-($C$54+$B66))<$C$48,$C$47*((1+$C$52)^$B66)*(1-($C$49*(H$65-($C$54+$B66))))*$C$50/(1-$C$51),0)) -> 0 | I66: =IF(I$65<($C$54+$B66),0,IF((I$65-($C$54+$B66))<$C$48,$C$47*((1+$C$52)^$B66)*(1-($C$49*(I$65-($C$54+$B66))))*$C$50/(1-$C$51),0)) -> 0 | J66: 0 | K66: 0 | L66: 0 | M66: 0 | N66: 0 | O66: 13853485.54 | P66: 13507148.4 | Q66: 13160811.26 | R66: 12814474.12 | S66: 12468136.98 | T66: 12121799.84 | U66: 11775462.71 | V66: 11429125.57 | W66: 11082788.43 | X66: 10736451.29 | Y66: 10390114.15 | Z66: 10043777.01 | AA66: 9697439.876 | AB66: 9351102.737 | AC66: 9004765.599 | AD66: 8658428.461 | AE66: 8312091.322 | AF66: 7965754.184 | AG66: 7619417.045 | AH66: 7273079.907 | AI66: 6926742.768 | AJ66: 6580405.63 | AK66: 6234068.492 | AL66: 5887731.353 | AM66: 5541394.215 | AN66: 5195057.076 | AO66: 4848719.938 | AP66: 4502382.8 | AQ66: 4156045.661 | AR66: 3809708.523 | AS66: 3463371.384 | AT66: 3117034.246 | AU66: 2770697.107 | AV66: 2424359.969 | AW66: 2078022.831 | AX66: 1731685.692 | AY66: 1385348.554 | AZ66: 1039011.415 | BA66: 692674.2768 | BB66: 346337.1384 | BC66: 0 | BD66: 0 | BE66: 0 | BF66: 0 | BG66: 0 | BH66: 0 | BI66: 0 | BJ66: 0 | BK66: 0
B67: 1 | C67: =NPV($C$53,I67:BK67)+H67 -> 75175166.81 | D67: =IF(B67<=$C$59, $C$66-C67, 0) -> 1418399.374 | E67: =IFERROR(INDEX(Dashboard!$C$12:$AB$12, , MATCH($B67+$C$54-1, Dashboard!$C$11:$AB$11, 0)), 0) -> 1.434328599 | F67: =IFERROR(D67/E67/B67/1000, 0) -> 988.8942988 | H67: =IF(H$65<($C$54+$B67),0,IF((H$65-($C$54+$B67))<$C$48,$C$47*((1+$C$52)^$B67)*(1-($C$49*(H$65-($C$54+$B67))))*$C$50/(1-$C$51),0)) -> 0 | I67: 0 | J67: 0 | K67: 0 | L67: 0 | M67: 0 | N67: 0 | O67: 0 | P67: 14684694.67 | Q67: 14317577.3 | R67: 13950459.94 | S67: 13583342.57 | T67: 13216225.2 | U67: 12849107.84 | V67: 12481990.47 | W67: 12114873.1 | X67: 11747755.74 | Y67: 11380638.37 | Z67: 11013521 | AA67: 10646403.64 | AB67: 10279286.27 | AC67: 9912168.902 | AD67: 9545051.535 | AE67: 9177934.168 | AF67: 8810816.802 | AG67: 8443699.435 | AH67: 8076582.068 | AI67: 7709464.701 | AJ67: 7342347.335 | AK67: 6975229.968 | AL67: 6608112.601 | AM67: 6240995.234 | AN67: 5873877.868 | AO67: 5506760.501 | AP67: 5139643.134 | AQ67: 4772525.767 | AR67: 4405408.401 | AS67: 4038291.034 | AT67: 3671173.667 | AU67: 3304056.301 | AV67: 2936938.934 | AW67: 2569821.567 | AX67: 2202704.2 | AY67: 1835586.834 | AZ67: 1468469.467 | BA67: 1101352.1 | BB67: 734234.7335 | BC67: 367117.3667 | BD67: 0 | BE67: 0 | BF67: 0 | BG67: 0 | BH67: 0 | BI67: 0 | BJ67: 0 | BK67: 0
B68: =B67+1 -> 2 | C68: =NPV($C$53,I68:BK68)+H68 -> 73783034.09 | D68: 2810532.092 | E68: =IFERROR(INDEX(Dashboard!$C$12:$AB$12, , MATCH($B68+$C$54-1, Dashboard!$C$11:$AB$11, 0)), 0) -> 4.81013739 | F68: 292.1467584 | H68: 0 | I68: 0 | J68: 0 | K68: 0 | L68: 0 | M68: 0 | N68: 0 | O68: 0 | P68: 0 | Q68: 15565776.35 | R68: 15176631.94 | S68: 14787487.53 | T68: 14398343.12 | U68: 14009198.71 | V68: 13620054.31 | W68: 13230909.9 | X68: 12841765.49 | Y68: 12452621.08 | Z68: 12063476.67 | AA68: 11674332.26 | AB68: 11285187.85 | AC68: 10896043.44 | AD68: 10506899.04 | AE68: 10117754.63 | AF68: 9728610.218 | AG68: 9339465.81 | AH68: 8950321.401 | AI68: 8561176.992 | AJ68: 8172032.583 | AK68: 7782888.175 | AL68: 7393743.766 | AM68: 7004599.357 | AN68: 6615454.948 | AO68: 6226310.54 | AP68: 5837166.131 | AQ68: 5448021.722 | AR68: 5058877.314 | AS68: 4669732.905 | AT68: 4280588.496 | AU68: 3891444.087 | AV68: 3502299.679 | AW68: 3113155.27 | AX68: 2724010.861 | AY68: 2334866.452 | AZ68: 1945722.044 | BA68: 1556577.635 | BB68: 1167433.226 | BC68: 778288.8175 | BD68: 389144.4087 | BE68: 0 | BF68: 0 | BG68: 0 | BH68: 0 | BI68: 0 | BJ68: 0 | BK68: 0
B69: =B68+1 -> 3 | C69: 72416681.61 | D69: 4176884.576 | E69: =IFERROR(INDEX(Dashboard!$C$12:$AB$12, , MATCH($B69+$C$54-1, Dashboard!$C$11:$AB$11, 0)), 0) -> 8.270341402 | F69: 168.3479304 | H69: 0 | I69: 0 | J69: 0 | K69: 0 | L69: 0 | M69: 0 | N69: 0 | O69: 0 | P69: 0 | Q69: 0 | R69: 16499722.93 | S69: 16087229.86 | T69: 15674736.78 | U69: 15262243.71 | V69: 14849750.64 | W69: 14437257.56 | X69: 14024764.49 | Y69: 13612271.42 | Z69: 13199778.34 | AA69: 12787285.27 | AB69: 12374792.2 | AC69: 11962299.12 | AD69: 11549806.05 | AE69: 11137312.98 | AF69: 10724819.9 | AG69: 10312326.83 | AH69: 9899833.758 | AI69: 9487340.685 | AJ69: 9074847.612 | AK69: 8662354.538 | AL69: 8249861.465 | AM69: 7837368.392 | AN69: 7424875.319 | AO69: 7012382.245 | AP69: 6599889.172 | AQ69: 6187396.099 | AR69: 5774903.026 | AS69: 5362409.952 | AT69: 4949916.879 | AU69: 4537423.806 | AV69: 4124930.733 | AW69: 3712437.659 | AX69: 3299944.586 | AY69: 2887451.513 | AZ69: 2474958.44 | BA69: 2062465.366 | BB69: 1649972.293 | BC69: 1237479.22 | BD69: 824986.1465 | BE69: 412493.0733 | BF69: 0 | BG69: 0 | BH69: 0 | BI69: 0 | BJ69: 0 | BK69: 0
B70: 4 | C70: 71075631.95 | D70: 5517934.235 | E70: =IFERROR(INDEX(Dashboard!$C$12:$AB$12, , MATCH($B70+$C$54-1, Dashboard!$C$11:$AB$11, 0)), 0) -> 0 | F70: 0 | H70: 0 | I70: 0 | J70: 0 | K70: 0 | L70: 0 | M70: 0 | N70: 0 | O70: 0 | P70: 0 | Q70: 0 | R70: 0 | S70: 17489706.31 | T70: 17052463.65 | U70: 16615220.99 | V70: 16177978.33 | W70: 15740735.68 | X70: 15303493.02 | Y70: 14866250.36 | Z70: 14429007.7 | AA70: 13991765.04 | AB70: 13554522.39 | AC70: 13117279.73 | AD70: 12680037.07 | AE70: 12242794.41 | AF70: 11805551.76 | AG70: 11368309.1 | AH70: 10931066.44 | AI70: 10493823.78 | AJ70: 10056581.13 | AK70: 9619338.468 | AL70: 9182095.811 | AM70: 8744853.153 | AN70: 8307610.495 | AO70: 7870367.838 | AP70: 7433125.18 | AQ70: 6995882.522 | AR70: =IF(AR$65<($C$54+$B70),0,IF((AR$65-($C$54+$B70))<$C$48,$C$47*((1+$C$52)^$B70)*(1-($C$49*(AR$65-($C$54+$B70))))*$C$50/(1-$C$51),0)) -> 6558639.865 | AS70: 6121397.207 | AT70: 5684154.549 | AU70: 5246911.892 | AV70: 4809669.234 | AW70: 4372426.577 | AX70: 3935183.919 | AY70: 3497941.261 | AZ70: 3060698.604 | BA70: 2623455.946 | BB70: 2186213.288 | BC70: 1748970.631 | BD70: 1311727.973 | BE70: 874485.3153 | BF70: 437242.6577 | BG70: 0 | BH70: =IF(BH$65<($C$54+$B70),0,IF((BH$65-($C$54+$B70))<$C$48,$C$47*((1+$C$52)^$B70)*(1-($C$49*(BH$65-($C$54+$B70))))*$C$50/(1-$C$51),0)) -> 0 | BI70: 0 | BJ70: 0 | BK70: 0
B71: 5 | C71: 69759416.54 | D71: 6834149.641 | E71: =IFERROR(INDEX(Dashboard!$C$12:$AB$12, , MATCH($B71+$C$54-1, Dashboard!$C$11:$AB$11, 0)), 0) -> 0 | F71: 0 | H71: 0 | I71: 0 | J71: 0 | K71: 0 | L71: 0 | M71: 0 | N71: 0 | O71: 0 | P71: 0 | Q71: 0 | R71: 0 | S71: 0 | T71: 18539088.68 | U71: 18075611.47 | V71: 17612134.25 | W71: 17148657.03 | X71: =IF(X$65<($C$54+$B71),0,IF((X$65-($C$54+$B71))<$C$48,$C$47*((1+$C$52)^$B71)*(1-($C$49*(X$65-($C$54+$B71))))*$C$50/(1-$C$51),0)) -> 16685179.82 | Y71: 16221702.6 | Z71: 15758225.38 | AA71: 15294748.16 | AB71: 14831270.95 | AC71: 14367793.73 | AD71: 13904316.51 | AE71: 13440839.3 | AF71: 12977362.08 | AG71: 12513884.86 | AH71: 12050407.64 | AI71: 11586930.43 | AJ71: 11123453.21 | AK71: 10659975.99 | AL71: 10196498.78 | AM71: 9733021.559 | AN71: =IF(AN$65<($C$54+$B71),0,IF((AN$65-($C$54+$B71))<$C$48,$C$47*((1+$C$52)^$B71)*(1-($C$49*(AN$65-($C$54+$B71))))*$C$50/(1-$C$51),0)) -> 9269544.342 | AO71: 8806067.125 | AP71: 8342589.908 | AQ71: 7879112.691 | AR71: 7415635.474 | AS71: 6952158.257 | AT71: 6488681.04 | AU71: 6025203.822 | AV71: 5561726.605 | AW71: 5098249.388 | AX71: 4634772.171 | AY71: 4171294.954 | AZ71: 3707817.737 | BA71: 3244340.52 | BB71: 2780863.303 | BC71: 2317386.086 | BD71: 1853908.868 | BE71: 1390431.651 | BF71: 926954.4342 | BG71: 463477.2171 | BH71: 0 | BI71: 0 | BJ71: 0 | BK71: 0
B72: 6 | C72: 68467575.49 | D72: 8125990.688 | E72: =IFERROR(INDEX(Dashboard!$C$12:$AB$12, , MATCH($B72+$C$54-1, Dashboard!$C$11:$AB$11, 0)), 0) -> 0 | F72: 0 | H72: 0 | I72: 0 | J72: 0 | K72: 0 | L72: 0 | M72: 0 | N72: 0 | O72: 0 | P72: 0 | Q72: 0 | R72: 0 | S72: 0 | T72: 0 | U72: 19651434.01 | V72: 19160148.16 | W72: 18668862.31 | X72: 18177576.46 | Y72: 17686290.6 | Z72: 17195004.75 | AA72: 16703718.9 | AB72: 16212433.05 | AC72: 15721147.2 | AD72: 15229861.35 | AE72: 14738575.5 | AF72: 14247289.65 | AG72: 13756003.8 | AH72: 13264717.95 | AI72: 12773432.1 | AJ72: 12282146.25 | AK72: 11790860.4 | AL72: 11299574.55 | AM72: 10808288.7 | AN72: 10317002.85 | AO72: 9825717.003 | AP72: 9334431.153 | AQ72: 8843145.302 | AR72: 8351859.452 | AS72: 7860573.602 | AT72: 7369287.752 | AU72: 6878001.902 | AV72: 6386716.052 | AW72: 5895430.202 | AX72: 5404144.352 | AY72: 4912858.501 | AZ72: 4421572.651 | BA72: 3930286.801 | BB72: 3439000.951 | BC72: 2947715.101 | BD72: 2456429.251 | BE72: 1965143.401 | BF72: 1473857.55 | BG72: 982571.7003 | BH72: 491285.8501 | BI72: 0 | BJ72: 0 | BK72: 0
B73: 7 | C73: 67199657.43 | D73: 9393908.753 | E73: =IFERROR(INDEX(Dashboard!$C$12:$AB$12, , MATCH($B73+$C$54-1, Dashboard!$C$11:$AB$11, 0)), 0) -> 0 | F73: 0 | H73: 0 | I73: 0 | J73: 0 | K73: 0 | L73: 0 | M73: 0 | N73: 0 | O73: 0 | P73: 0 | Q73: 0 | R73: 0 | S73: 0 | T73: 0 | U73: 0 | V73: 20830520.05 | W73: 20309757.04 | X73: 19788994.04 | Y73: 19268231.04 | Z73: 18747468.04 | AA73: 18226705.04 | AB73: 17705942.04 | AC73: 17185179.04 | AD73: 16664416.04 | AE73: 16143653.04 | AF73: 15622890.03 | AG73: 15102127.03 | AH73: 14581364.03 | AI73: 14060601.03 | AJ73: 13539838.03 | AK73: 13019075.03 | AL73: 12498312.03 | AM73: 11977549.03 | AN73: 11456786.03 | AO73: 10936023.02 | AP73: 10415260.02 | AQ73: 9894497.022 | AR73: 9373734.021 | AS73: 8852971.019 | AT73: 8332208.018 | AU73: 7811445.017 | AV73: 7290682.016 | AW73: 6769919.015 | AX73: 6249156.014 | AY73: 5728393.013 | AZ73: 5207630.011 | BA73: 4686867.01 | BB73: 4166104.009 | BC73: 3645341.008 | BD73: 3124578.007 | BE73: 2603815.006 | BF73: 2083052.005 | BG73: 1562289.003 | BH73: 1041526.002 | BI73: 520763.0011 | BJ73: 0 | BK73: 0
B74: 8 | C74: 65955219.33 | D74: 10638346.85 | E74: =IFERROR(INDEX(Dashboard!$C$12:$AB$12, , MATCH($B74+$C$54-1, Dashboard!$C$11:$AB$11, 0)), 0) -> 0 | F74: 0 | H74: 0 | I74: 0 | J74: 0 | K74: 0 | L74: 0 | M74: 0 | N74: 0 | O74: 0 | P74: 0 | Q74: 0 | R74: 0 | S74: 0 | T74: 0 | U74: 0 | V74: 0 | W74: 22080351.25 | X74: 21528342.47 | Y74: 20976333.69 | Z74: 20424324.9 | AA74: 19872316.12 | AB74: 19320307.34 | AC74: 18768298.56 | AD74: 18216289.78 | AE74: 17664281 | AF74: 17112272.22 | AG74: 16560263.44 | AH74: 16008254.66 | AI74: 15456245.87 | AJ74: 14904237.09 | AK74: 14352228.31 | AL74: 13800219.53 | AM74: 13248210.75 | AN74: 12696201.97 | AO74: 12144193.19 | AP74: 11592184.41 | AQ74: 11040175.62 | AR74: 10488166.84 | AS74: 9936158.062 | AT74: 9384149.281 | AU74: 8832140.499 | AV74: 8280131.718 | AW74: 7728122.937 | AX74: 7176114.156 | AY74: 6624105.375 | AZ74: 6072096.593 | BA74: 5520087.812 | BB74: 4968079.031 | BC74: 4416070.25 | BD74: 3864061.469 | BE74: 3312052.687 | BF74: 2760043.906 | BG74: 2208035.125 | BH74: 1656026.344 | BI74: 1104017.562 | BJ74: 552008.7812 | BK74: 0
B75: 9 | C75: 64733826.38 | D75: 11859739.8 | E75: =IFERROR(INDEX(Dashboard!$C$12:$AB$12, , MATCH($B75+$C$54-1, Dashboard!$C$11:$AB$11, 0)), 0) -> 0 | F75: 0 | H75: 0 | I75: 0 | J75: 0 | K75: 0 | L75: 0 | M75: 0 | N75: 0 | O75: 0 | P75: 0 | Q75: 0 | R75: 0 | S75: 0 | T75: 0 | U75: 0 | V75: 0 | W75: 0 | X75: 23405172.32 | Y75: 22820043.02 | Z75: 22234913.71 | AA75: 21649784.4 | AB75: 21064655.09 | AC75: 20479525.78 | AD75: 19894396.48 | AE75: 19309267.17 | AF75: 18724137.86 | AG75: 18139008.55 | AH75: 17553879.24 | AI75: 16968749.93 | AJ75: 16383620.63 | AK75: 15798491.32 | AL75: 15213362.01 | AM75: 14628232.7 | AN75: 14043103.39 | AO75: 13457974.09 | AP75: 12872844.78 | AQ75: 12287715.47 | AR75: 11702586.16 | AS75: 11117456.85 | AT75: 10532327.55 | AU75: 9947198.238 | AV75: 9362068.929 | AW75: 8776939.621 | AX75: 8191810.313 | AY75: 7606681.005 | AZ75: 7021551.697 | BA75: 6436422.389 | BB75: 5851293.081 | BC75: 5266163.773 | BD75: 4681034.465 | BE75: 4095905.157 | BF75: 3510775.849 | BG75: 2925646.54 | BH75: 2340517.232 | BI75: 1755387.924 | BJ75: 1170258.616 | BK75: 585129.3081
B76: 10 | C76: 63526718.32 | D76: 13066847.87 | E76: =IFERROR(INDEX(Dashboard!$C$12:$AB$12, , MATCH($B76+$C$54-1, Dashboard!$C$11:$AB$11, 0)), 0) -> 0 | F76: 0 | H76: 0 | I76: 0 | J76: 0 | K76: 0 | L76: 0 | M76: 0 | N76: 0 | O76: 0 | P76: 0 | Q76: 0 | R76: 0 | S76: 0 | T76: 0 | U76: 0 | V76: 0 | W76: 0 | X76: 0 | Y76: 24809482.66 | Z76: 24189245.6 | AA76: 23569008.53 | AB76: 22948771.46 | AC76: 22328534.4 | AD76: 21708297.33 | AE76: 21088060.26 | AF76: 20467823.2 | AG76: 19847586.13 | AH76: 19227349.06 | AI76: 18607112 | AJ76: 17986874.93 | AK76: 17366637.86 | AL76: 16746400.8 | AM76: 16126163.73 | AN76: 15505926.66 | AO76: 14885689.6 | AP76: 14265452.53 | AQ76: 13645215.46 | AR76: 13024978.4 | AS76: 12404741.33 | AT76: 11784504.26 | AU76: 11164267.2 | AV76: 10544030.13 | AW76: 9923793.065 | AX76: 9303555.999 | AY76: 8683318.932 | AZ76: 8063081.865 | BA76: 7442844.799 | BB76: 6822607.732 | BC76: 6202370.666 | BD76: 5582133.599 | BE76: 4961896.533 | BF76: 4341659.466 | BG76: 3721422.399 | BH76: 3101185.333 | BI76: 2480948.266 | BJ76: 1860711.2 | BK76: 1240474.133
B77: 11 | C77: 62332630.59 | D77: 14260935.59 | E77: =IFERROR(INDEX(Dashboard!$C$12:$AB$12, , MATCH($B77+$C$54-1, Dashboard!$C$11:$AB$11, 0)), 0) -> 0 | F77: 0 | H77: 0 | I77: 0 | J77: 0 | K77: 0 | L77: 0 | M77: 0 | N77: 0 | O77: 0 | P77: 0 | Q77: 0 | R77: 0 | S77: 0 | T77: 0 | U77: 0 | V77: 0 | W77: 0 | X77: 0 | Y77: 0 | Z77: 26298051.62 | AA77: 25640600.33 | AB77: 24983149.04 | AC77: 24325697.75 | AD77: 23668246.46 | AE77: 23010795.17 | AF77: 22353343.88 | AG77: 21695892.59 | AH77: 21038441.3 | AI77: 20380990.01 | AJ77: 19723538.72 | AK77: 19066087.43 | AL77: 18408636.14 | AM77: 17751184.85 | AN77: 17093733.55 | AO77: 16436282.26 | AP77: 15778830.97 | AQ77: 15121379.68 | AR77: 14463928.39 | AS77: 13806477.1 | AT77: 13149025.81 | AU77: 12491574.52 | AV77: 11834123.23 | AW77: 11176671.94 | AX77: 10519220.65 | AY77: 9861769.359 | AZ77: 9204318.068 | BA77: 8546866.777 | BB77: 7889415.487 | BC77: 7231964.196 | BD77: 6574512.906 | BE77: 5917061.615 | BF77: 5259610.325 | BG77: 4602159.034 | BH77: 3944707.743 | BI77: 3287256.453 | BJ77: 2629805.162 | BK77: 1972353.872
B78: 12 | C78: 61150232.05 | D78: 15443334.13 | E78: =IFERROR(INDEX(Dashboard!$C$12:$AB$12, , MATCH($B78+$C$54-1, Dashboard!$C$11:$AB$11, 0)), 0) -> 0 | F78: 0 | H78: 0 | I78: 0 | J78: 0 | K78: 0 | L78: 0 | M78: 0 | N78: 0 | O78: 0 | P78: 0 | Q78: 0 | R78: 0 | S78: 0 | T78: 0 | U78: 0 | V78: 0 | W78: 0 | X78: 0 | Y78: 0 | Z78: 0 | AA78: 27875934.72 | AB78: 27179036.35 | AC78: 26482137.98 | AD78: 25785239.62 | AE78: 25088341.25 | AF78: 24391442.88 | AG78: 23694544.51 | AH78: 22997646.14 | AI78: 22300747.78 | AJ78: 21603849.41 | AK78: 20906951.04 | AL78: 20210052.67 | AM78: 19513154.3 | AN78: 18816255.94 | AO78: 18119357.57 | AP78: 17422459.2 | AQ78: 16725560.83 | AR78: 16028662.46 | AS78: 15331764.1 | AT78: 14634865.73 | AU78: 13937967.36 | AV78: 13241068.99 | AW78: 12544170.62 | AX78: 11847272.26 | AY78: 11150373.89 | AZ78: 10453475.52 | BA78: 9756577.152 | BB78: 9059678.784 | BC78: 8362780.416 | BD78: 7665882.048 | BE78: 6968983.68 | BF78: 6272085.312 | BG78: 5575186.944 | BH78: 4878288.576 | BI78: 4181390.208 | BJ78: 3484491.84 | BK78: 2787593.472
B79: 13 | C79: 59978119.02 | D79: 16615447.16 | E79: =IFERROR(INDEX(Dashboard!$C$12:$AB$12, , MATCH($B79+$C$54-1, Dashboard!$C$11:$AB$11, 0)), 0) -> 0 | F79: 0 | H79: 0 | I79: 0 | J79: 0 | K79: 0 | L79: 0 | M79: 0 | N79: 0 | O79: 0 | P79: 0 | Q79: 0 | R79: 0 | S79: 0 | T79: 0 | U79: 0 | V79: 0 | W79: 0 | X79: 0 | Y79: 0 | Z79: 0 | AA79: 0 | AB79: 29548490.8 | AC79: 28809778.53 | AD79: 28071066.26 | AE79: 27332353.99 | AF79: 26593641.72 | AG79: 25854929.45 | AH79: 25116217.18 | AI79: 24377504.91 | AJ79: 23638792.64 | AK79: 22900080.37 | AL79: 22161368.1 | AM79: 21422655.83 | AN79: 20683943.56 | AO79: 19945231.29 | AP79: 19206519.02 | AQ79: 18467806.75 | AR79: 17729094.48 | AS79: 16990382.21 | AT79: 16251669.94 | AU79: 15512957.67 | AV79: 14774245.4 | AW79: 14035533.13 | AX79: 13296820.86 | AY79: 12558108.59 | AZ79: 11819396.32 | BA79: 11080684.05 | BB79: 10341971.78 | BC79: 9603259.511 | BD79: 8864547.241 | BE79: 8125834.971 | BF79: 7387122.701 | BG79: 6648410.431 | BH79: 5909698.161 | BI79: 5170985.891 | BJ79: 4432273.62 | BK79: 3693561.35
B80: 14 | C80: 58814808.86 | D80: 17778757.32 | E80: =IFERROR(INDEX(Dashboard!$C$12:$AB$12, , MATCH($B80+$C$54-1, Dashboard!$C$11:$AB$11, 0)), 0) -> 0 | F80: 0 | H80: 0 | I80: 0 | J80: 0 | K80: 0 | L80: 0 | M80: 0 | N80: 0 | O80: 0 | P80: 0 | Q80: 0 | R80: 0 | S80: 0 | T80: 0 | U80: 0 | V80: 0 | W80: 0 | X80: 0 | Y80: 0 | Z80: 0 | AA80: 0 | AB80: 0 | AC80: 31321400.25 | AD80: 30538365.25 | AE80: 29755330.24 | AF80: 28972295.23 | AG80: 28189260.23 | AH80: 27406225.22 | AI80: 26623190.21 | AJ80: 25840155.21 | AK80: 25057120.2 | AL80: 24274085.19 | AM80: 23491050.19 | AN80: 22708015.18 | AO80: 21924980.18 | AP80: 21141945.17 | AQ80: 20358910.16 | AR80: 19575875.16 | AS80: 18792840.15 | AT80: 18009805.14 | AU80: 17226770.14 | AV80: 16443735.13 | AW80: 15660700.13 | AX80: 14877665.12 | AY80: 14094630.11 | AZ80: 13311595.11 | BA80: 12528560.1 | BB80: 11745525.09 | BC80: 10962490.09 | BD80: 10179455.08 | BE80: 9396420.075 | BF80: 8613385.069 | BG80: 7830350.063 | BH80: 7047315.057 | BI80: 6264280.05 | BJ80: 5481245.044 | BK80: 4698210.038
B81: 15 | C81: 57658733.12 | D81: 18934833.06 | E81: =IFERROR(INDEX(Dashboard!$C$12:$AB$12, , MATCH($B81+$C$54-1, Dashboard!$C$11:$AB$11, 0)), 0) -> 0 | F81: 0 | H81: 0 | I81: 0 | J81: 0 | K81: 0 | L81: 0 | M81: 0 | N81: 0 | O81: 0 | P81: 0 | Q81: 0 | R81: 0 | S81: 0 | T81: 0 | U81: 0 | V81: 0 | W81: 0 | X81: 0 | Y81: 0 | Z81: 0 | AA81: 0 | AB81: 0 | AC81: 0 | AD81: 33200684.27 | AE81: 32370667.16 | AF81: 31540650.05 | AG81: 30710632.95 | AH81: 29880615.84 | AI81: 29050598.73 | AJ81: 28220581.63 | AK81: 27390564.52 | AL81: 26560547.41 | AM81: 25730530.31 | AN81: 24900513.2 | AO81: 24070496.09 | AP81: 23240478.99 | AQ81: 22410461.88 | AR81: 21580444.77 | AS81: 20750427.67 | AT81: 19920410.56 | AU81: 19090393.45 | AV81: 18260376.35 | AW81: 17430359.24 | AX81: 16600342.13 | AY81: 15770325.03 | AZ81: 14940307.92 | BA81: 14110290.81 | BB81: 13280273.71 | BC81: 12450256.6 | BD81: 11620239.49 | BE81: 10790222.39 | BF81: 9960205.28 | BG81: 9130188.173 | BH81: 8300171.067 | BI81: 7470153.96 | BJ81: 6640136.853 | BK81: 5810119.747
B82: 16 | C82: 56508230.21 | D82: 20085335.97 | E82: =IFERROR(INDEX(Dashboard!$C$12:$AB$12, , MATCH($B82+$C$54-1, Dashboard!$C$11:$AB$11, 0)), 0) -> 0 | F82: 0 | H82: 0 | I82: 0 | J82: 0 | K82: 0 | L82: 0 | M82: 0 | N82: 0 | O82: 0 | P82: 0 | Q82: 0 | R82: 0 | S82: 0 | T82: 0 | U82: 0 | V82: 0 | W82: 0 | X82: 0 | Y82: 0 | Z82: 0 | AA82: 0 | AB82: 0 | AC82: 0 | AD82: 0 | AE82: 35192725.32 | AF82: 34312907.19 | AG82: 33433089.06 | AH82: 32553270.92 | AI82: 31673452.79 | AJ82: 30793634.66 | AK82: 29913816.52 | AL82: 29033998.39 | AM82: 28154180.26 | AN82: 27274362.13 | AO82: 26394543.99 | AP82: 25514725.86 | AQ82: 24634907.73 | AR82: 23755089.59 | AS82: 22875271.46 | AT82: 21995453.33 | AU82: 21115635.19 | AV82: 20235817.06 | AW82: 19355998.93 | AX82: 18476180.79 | AY82: 17596362.66 | AZ82: 16716544.53 | BA82: 15836726.4 | BB82: 14956908.26 | BC82: 14077090.13 | BD82: 13197272 | BE82: 12317453.86 | BF82: 11437635.73 | BG82: 10557817.6 | BH82: 9677999.464 | BI82: 8798181.331 | BJ82: 7918363.198 | BK82: 7038545.065
B83: 17 | C83: 55361537.48 | D83: 21232028.7 | E83: =IFERROR(INDEX(Dashboard!$C$12:$AB$12, , MATCH($B83+$C$54-1, Dashboard!$C$11:$AB$11, 0)), 0) -> 0 | F83: 0 | H83: 0 | I83: 0 | J83: 0 | K83: 0 | L83: 0 | M83: 0 | N83: 0 | O83: 0 | P83: 0 | Q83: 0 | R83: 0 | S83: 0 | T83: 0 | U83: 0 | V83: 0 | W83: 0 | X83: 0 | Y83: 0 | Z83: 0 | AA83: 0 | AB83: 0 | AC83: 0 | AD83: 0 | AE83: 0 | AF83: 37304288.84 | AG83: 36371681.62 | AH83: 35439074.4 | AI83: 34506467.18 | AJ83: 33573859.96 | AK83: 32641252.74 | AL83: 31708645.52 | AM83: 30776038.29 | AN83: 29843431.07 | AO83: 28910823.85 | AP83: 27978216.63 | AQ83: 27045609.41 | AR83: 26113002.19 | AS83: 25180394.97 | AT83: 24247787.75 | AU83: 23315180.53 | AV83: 22382573.31 | AW83: 21449966.08 | AX83: 20517358.86 | AY83: 19584751.64 | AZ83: 18652144.42 | BA83: 17719537.2 | BB83: 16786929.98 | BC83: 15854322.76 | BD83: 14921715.54 | BE83: 13989108.32 | BF83: 13056501.09 | BG83: 12123893.87 | BH83: 11191286.65 | BI83: 10258679.43 | BJ83: 9326072.21 | BK83: 8393464.989
B84: 18 | C84: 54216782.84 | D84: 22376783.34 | E84: =IFERROR(INDEX(Dashboard!$C$12:$AB$12, , MATCH($B84+$C$54-1, Dashboard!$C$11:$AB$11, 0)), 0) -> 0 | F84: 0 | H84: 0 | I84: 0 | J84: 0 | K84: 0 | L84: 0 | M84: 0 | N84: 0 | O84: 0 | P84: 0 | Q84: 0 | R84: 0 | S84: 0 | T84: 0 | U84: 0 | V84: 0 | W84: 0 | X84: 0 | Y84: 0 | Z84: 0 | AA84: 0 | AB84: 0 | AC84: 0 | AD84: 0 | AE84: 0 | AF84: 0 | AG84: 39542546.17 | AH84: 38553982.52 | AI84: 37565418.86 | AJ84: 36576855.21 | AK84: 35588291.56 | AL84: 34599727.9 | AM84: 33611164.25 | AN84: 32622600.59 | AO84: 31634036.94 | AP84: 30645473.28 | AQ84: 29656909.63 | AR84: 28668345.98 | AS84: 27679782.32 | AT84: 26691218.67 | AU84: 25702655.01 | AV84: 24714091.36 | AW84: 23725527.7 | AX84: 22736964.05 | AY84: 21748400.39 | AZ84: 20759836.74 | BA84: 19771273.09 | BB84: 18782709.43 | BC84: 17794145.78 | BD84: 16805582.12 | BE84: 15817018.47 | BF84: 14828454.81 | BG84: 13839891.16 | BH84: 12851327.51 | BI84: 11862763.85 | BJ84: 10874200.2 | BK84: 9885636.543
B85: 19 | C85: 53071975.62 | D85: 23521590.56 | E85: =IFERROR(INDEX(Dashboard!$C$12:$AB$12, , MATCH($B85+$C$54-1, Dashboard!$C$11:$AB$11, 0)), 0) -> 0 | F85: 0 | H85: 0 | I85: 0 | J85: 0 | K85: 0 | L85: 0 | M85: 0 | N85: 0 | O85: 0 | P85: 0 | Q85: 0 | R85: 0 | S85: 0 | T85: 0 | U85: 0 | V85: 0 | W85: 0 | X85: 0 | Y85: 0 | Z85: 0 | AA85: 0 | AB85: 0 | AC85: 0 | AD85: 0 | AE85: 0 | AF85: 0 | AG85: 0 | AH85: 41915098.94 | AI85: 40867221.47 | AJ85: 39819344 | AK85: 38771466.52 | AL85: 37723589.05 | AM85: 36675711.57 | AN85: 35627834.1 | AO85: 34579956.63 | AP85: 33532079.15 | AQ85: 32484201.68 | AR85: 31436324.21 | AS85: 30388446.73 | AT85: 29340569.26 | AU85: 28292691.79 | AV85: 27244814.31 | AW85: 26196936.84 | AX85: 25149059.37 | AY85: 24101181.89 | AZ85: 23053304.42 | BA85: 22005426.94 | BB85: 20957549.47 | BC85: 19909672 | BD85: 18861794.52 | BE85: 17813917.05 | BF85: 16766039.58 | BG85: 15718162.1 | BH85: 14670284.63 | BI85: 13622407.16 | BJ85: 12574529.68 | BK85: 11526652.21
B86: 20 | C86: 51924996.95 | D86: 24668569.23 | E86: =IFERROR(INDEX(Dashboard!$C$12:$AB$12, , MATCH($B86+$C$54-1, Dashboard!$C$11:$AB$11, 0)), 0) -> 0 | F86: 0 | H86: 0 | I86: 0 | J86: 0 | K86: 0 | L86: 0 | M86: 0 | N86: 0 | O86: 0 | P86: 0 | Q86: 0 | R86: 0 | S86: =IF(S$65<($C$54+$B86),0,IF((S$65-($C$54+$B86))<$C$48,$C$47*((1+$C$52)^$B86)*(1-($C$49*(S$65-($C$54+$B86))))*$C$50/(1-$C$51),0)) -> 0 | T86: 0 | U86: 0 | V86: 0 | W86: 0 | X86: 0 | Y86: 0 | Z86: 0 | AA86: 0 | AB86: 0 | AC86: 0 | AD86: 0 | AE86: 0 | AF86: 0 | AG86: 0 | AH86: 0 | AI86: 44430004.88 | AJ86: 43319254.76 | AK86: 42208504.64 | AL86: 41097754.51 | AM86: 39987004.39 | AN86: 38876254.27 | AO86: 37765504.15 | AP86: 36654754.03 | AQ86: 35544003.9 | AR86: 34433253.78 | AS86: 33322503.66 | AT86: 32211753.54 | AU86: 31101003.42 | AV86: 29990253.29 | AW86: 28879503.17 | AX86: 27768753.05 | AY86: 26658002.93 | AZ86: 25547252.81 | BA86: 24436502.68 | BB86: 23325752.56 | BC86: =IF(BC$65<($C$54+$B86),0,IF((BC$65-($C$54+$B86))<$C$48,$C$47*((1+$C$52)^$B86)*(1-($C$49*(BC$65-($C$54+$B86))))*$C$50/(1-$C$51),0)) -> 22215002.44 | BD86: 21104252.32 | BE86: 19993502.2 | BF86: 18882752.07 | BG86: 17772001.95 | BH86: 16661251.83 | BI86: 15550501.71 | BJ86: 14439751.59 | BK86: 13329001.46
B87: 21 | C87: 50773589.29 | D87: 25819976.89 | E87: =IFERROR(INDEX(Dashboard!$C$12:$AB$12, , MATCH($B87+$C$54-1, Dashboard!$C$11:$AB$11, 0)), 0) -> 0 | F87: 0 | H87: =IF(H$65<($C$54+$B87),0,IF((H$65-($C$54+$B87))<$C$48,$C$47*((1+$C$52)^$B87)*(1-($C$49*(H$65-($C$54+$B87))))*$C$50/(1-$C$51),0)) -> 0 | I87: 0 | J87: 0 | K87: 0 | L87: 0 | M87: 0 | N87: 0 | O87: 0 | P87: 0 | Q87: 0 | R87: 0 | S87: 0 | T87: 0 | U87: 0 | V87: 0 | W87: 0 | X87: 0 | Y87: 0 | Z87: 0 | AA87: 0 | AB87: 0 | AC87: 0 | AD87: 0 | AE87: 0 | AF87: 0 | AG87: 0 | AH87: 0 | AI87: 0 | AJ87: 47095805.17 | AK87: 45918410.04 | AL87: 44741014.91 | AM87: 43563619.78 | AN87: =IF(AN$65<($C$54+$B87),0,IF((AN$65-($C$54+$B87))<$C$48,$C$47*((1+$C$52)^$B87)*(1-($C$49*(AN$65-($C$54+$B87))))*$C$50/(1-$C$51),0)) -> 42386224.65 | AO87: 41208829.53 | AP87: 40031434.4 | AQ87: 38854039.27 | AR87: 37676644.14 | AS87: 36499249.01 | AT87: 35321853.88 | AU87: 34144458.75 | AV87: 32967063.62 | AW87: 31789668.49 | AX87: 30612273.36 | AY87: 29434878.23 | AZ87: 28257483.1 | BA87: 27080087.97 | BB87: 25902692.84 | BC87: 24725297.72 | BD87: 23547902.59 | BE87: 22370507.46 | BF87: 21193112.33 | BG87: 20015717.2 | BH87: 18838322.07 | BI87: 17660926.94 | BJ87: 16483531.81 | BK87: 15306136.68
B88: 22 | C88: 49615345.34 | D88: 26978220.84 | E88: =IFERROR(INDEX(Dashboard!$C$12:$AB$12, , MATCH($B88+$C$54-1, Dashboard!$C$11:$AB$11, 0)), 0) -> 0 | F88: =IFERROR(D88/E88/B88/1000, 0) -> 0 | H88: 0 | I88: 0 | J88: 0 | K88: 0 | L88: 0 | M88: 0 | N88: 0 | O88: 0 | P88: 0 | Q88: 0 | R88: 0 | S88: 0 | T88: 0 | U88: 0 | V88: 0 | W88: 0 | X88: 0 | Y88: 0 | Z88: 0 | AA88: 0 | AB88: 0 | AC88: 0 | AD88: 0 | AE88: 0 | AF88: 0 | AG88: 0 | AH88: 0 | AI88: 0 | AJ88: 0 | AK88: 49921553.48 | AL88: 48673514.65 | AM88: 47425475.81 | AN88: 46177436.97 | AO88: 44929398.13 | AP88: 43681359.3 | AQ88: 42433320.46 | AR88: 41185281.62 | AS88: 39937242.79 | AT88: 38689203.95 | AU88: 37441165.11 | AV88: 36193126.27 | AW88: 34945087.44 | AX88: 33697048.6 | AY88: 32449009.76 | AZ88: 31200970.93 | BA88: 29952932.09 | BB88: 28704893.25 | BC88: 27456854.42 | BD88: 26208815.58 | BE88: 24960776.74 | BF88: 23712737.9 | BG88: 22464699.07 | BH88: 21216660.23 | BI88: 19968621.39 | BJ88: 18720582.56 | BK88: 17472543.72
B89: 23 | C89: 48447696.06 | D89: 28145870.12 | E89: =IFERROR(INDEX(Dashboard!$C$12:$AB$12, , MATCH($B89+$C$54-1, Dashboard!$C$11:$AB$11, 0)), 0) -> 0 | F89: 0 | H89: 0 | I89: 0 | J89: 0 | K89: 0 | L89: 0 | M89: 0 | N89: 0 | O89: 0 | P89: 0 | Q89: 0 | R89: 0 | S89: 0 | T89: 0 | U89: 0 | V89: 0 | W89: 0 | X89: 0 | Y89: 0 | Z89: 0 | AA89: 0 | AB89: 0 | AC89: 0 | AD89: 0 | AE89: 0 | AF89: 0 | AG89: 0 | AH89: 0 | AI89: =IF(AI$65<($C$54+$B89),0,IF((AI$65-($C$54+$B89))<$C$48,$C$47*((1+$C$52)^$B89)*(1-($C$49*(AI$65-($C$54+$B89))))*$C$50/(1-$C$51),0)) -> 0 | AJ89: 0 | AK89: 0 | AL89: 52916846.69 | AM89: 51593925.52 | AN89: 50271004.36 | AO89: 48948083.19 | AP89: 47625162.02 | AQ89: 46302240.85 | AR89: 44979319.69 | AS89: 43656398.52 | AT89: 42333477.35 | AU89: 41010556.19 | AV89: 39687635.02 | AW89: 38364713.85 | AX89: 37041792.68 | AY89: 35718871.52 | AZ89: 34395950.35 | BA89: 33073029.18 | BB89: 31750108.01 | BC89: 30427186.85 | BD89: 29104265.68 | BE89: 27781344.51 | BF89: 26458423.35 | BG89: 25135502.18 | BH89: 23812581.01 | BI89: 22489659.84 | BJ89: 21166738.68 | BK89: 19843817.51
B90: 24 | C90: 47267897.88 | D90: 0 | E90: =IFERROR(INDEX(Dashboard!$C$12:$AB$12, , MATCH($B90+$C$54-1, Dashboard!$C$11:$AB$11, 0)), 0) -> 0 | F90: 0 | H90: 0 | I90: 0 | J90: 0 | K90: 0 | L90: 0 | M90: 0 | N90: 0 | O90: 0 | P90: 0 | Q90: 0 | R90: 0 | S90: 0 | T90: 0 | U90: 0 | V90: 0 | W90: 0 | X90: 0 | Y90: 0 | Z90: 0 | AA90: 0 | AB90: 0 | AC90: 0 | AD90: 0 | AE90: 0 | AF90: 0 | AG90: 0 | AH90: 0 | AI90: 0 | AJ90: 0 | AK90: 0 | AL90: 0 | AM90: 56091857.49 | AN90: 54689561.06 | AO90: 53287264.62 | AP90: 51884968.18 | AQ90: 50482671.74 | AR90: 49080375.31 | AS90: 47678078.87 | AT90: 46275782.43 | AU90: 44873485.99 | AV90: 43471189.56 | AW90: 42068893.12 | AX90: 40666596.68 | AY90: 39264300.25 | AZ90: 37862003.81 | BA90: 36459707.37 | BB90: 35057410.93 | BC90: 33655114.5 | BD90: 32252818.06 | BE90: 30850521.62 | BF90: 29448225.18 | BG90: 28045928.75 | BH90: 26643632.31 | BI90: 25241335.87 | BJ90: 23839039.43 | BK90: 22436743
B91: 25 | C91: 46073018.97 | D91: 0 | E91: =IFERROR(INDEX(Dashboard!$C$12:$AB$12, , MATCH($B91+$C$54-1, Dashboard!$C$11:$AB$11, 0)), 0) -> 0 | F91: 0 | H91: 0 | I91: 0 | J91: 0 | K91: 0 | L91: 0 | M91: 0 | N91: 0 | O91: 0 | P91: 0 | Q91: 0 | R91: 0 | S91: 0 | T91: 0 | U91: 0 | V91: 0 | W91: 0 | X91: 0 | Y91: 0 | Z91: 0 | AA91: 0 | AB91: 0 | AC91: 0 | AD91: 0 | AE91: 0 | AF91: 0 | AG91: 0 | AH91: 0 | AI91: 0 | AJ91: 0 | AK91: 0 | AL91: 0 | AM91: 0 | AN91: 59457368.94 | AO91: 57970934.72 | AP91: 56484500.5 | AQ91: 54998066.27 | AR91: 53511632.05 | AS91: 52025197.82 | AT91: 50538763.6 | AU91: 49052329.38 | AV91: 47565895.15 | AW91: 46079460.93 | AX91: 44593026.71 | AY91: 43106592.48 | AZ91: 41620158.26 | BA91: 40133724.04 | BB91: 38647289.81 | BC91: 37160855.59 | BD91: 35674421.37 | BE91: 34187987.14 | BF91: 32701552.92 | BG91: 31215118.69 | BH91: 29728684.47 | BI91: 28242250.25 | BJ91: 26755816.02 | BK91: 25269381.8
B93: *Entered on Dashboard tab as Annual Capacity Need. If DERs provide the annual capacity need, then the traditional asset can be deferred.

Sheet Bridge to Wires Calculation
B3: Bridge-to-Wires Solution
B6: Bridge-to-Wires solutions are designed to bridge the gap between an imminent capacity constraint and the time it takes to complete construction of a traditional infrastructure solution.
B40: Bridge-to-Wires Value Stream Calculation
D42: ILLUSTRATIVE INPUTS. All inputs included are illustrative only, used to indicate calculation methodology rather than actual bridge-to-wires value inputs and results. Approaches applied by each EDC may vary slightly and EDC inputs should align with approved filings.
C46: Value Stream Inputs | F46: Explanation
C47: Rate Impact Value Stream Selection | E47: Weighted Average of Avoided Backup Solutions | F47: Selection for how to calculate Bridge-to-Wires Value
C48: Example Equipment Cost Range | E48: Medium | F48: Applies to backup Diesel and Storage values
C49: Value of Lost Load Customer Risk Profile* | E49: Medium | F49: Value of Lost Load depends on the risk profile of the customers behind a feeder. High: higher proportion of C&I customers; Medium: current statewide customer proportions; Low: higher proportion of residential customers
C50: Battery Storage Cost Multipliers
D51: High | E51: 2 | F51: Intended to reflect cost premiums for servicing islands with battery storage
D52: Medium | E52: 1.25 | F52: Intended to reflect cost premiums to service Eastern Massachusetts and urban areas with battery storage
D53: Low | E53: 0.75 | F53: Intended to reflect cost difference for servicing for Western Massachusetts and rural areas with battery storage
C54: Probability of Backup Solution being Deployed (without use of DERs) | F54: How probable is it that a given backup solution would otherwise be deployed for the selected location if DERs are not used? Probabilities must sum to 100%. | P54: =IF(SUM(E55:E56)=1,"","ERROR - Probabilities do not sum to 100%!") -> 
D55: Backup Diesel Generator | E55: 0.9 | F55: User-input assumption for probability that a diesel generator backup would be deployed if DERs were not used as a solution
D56: Backup Energy Storage | E56: 0.1 | F56: User-input assumption for probability that utility-owned backup energy storage would be deployed if DERs were not used as a solution
C57: Bridge-to-Wires Rate Impact Value ($/kW-yr) | E57: =_xlfn.IFS($E$47=$B$114, $E$115, $E$47=$B$80, $E$93, $E$47=$B$97, $E$110*SUMIFS($E$51:$E$53, $D$51:$D$53, $E$48)) -> 117.5558824
C58: *Value of Lost Load is a Non-Rate Impact and is not reflected within the Bridge-to-Wires value output
X59: Chart Helper Data (Do not edit)
X60: Weighted Average | Z60: =E115 -> 117.5558824
X61: Avoided Backup Diesel Generator | Z61: =E93 -> 100
X62: Avoided Backup Energy Storage | Z62: =$E$110*SUMIFS($E$51:$E$53, $D$51:$D$53, $E$48) -> 275.5588235
X63: Value of Lost Load | Z63: =E136 -> 68.95271379
X65: High | Z65: =F93 -> 200
X66: Medium | Z66: =G93 -> 100
X67: Low | Z67: =H93 -> 57.98
X69: High | Z69: =$E$110*E51 -> 440.8941176
X70: Medium | Z70: =$E$110*E52 -> 275.5588235
X71: Low | Z71: =$E$110*E53 -> 165.3352941
X73: High | Z73: ='ICE Calculator Results'!P26 -> 105.6963438
X74: Medium | Z74: ='ICE Calculator Results'!P23 -> 68.95271379
C75: *Avoided Backup Energy Storage does not factor the Priority Multiplier in the graph | X75: Low | Z75: ='ICE Calculator Results'!P20 -> 54.2127836
B78: Rate Impact Value Streams - Avoided Cost of Backup Solutions
B80: =Mappings!F5 -> Avoided Backup Diesel Generator | E80: =E48 -> Medium | F80: High | G80: Medium | H80: Low | I80: Reference | K80: Assumption
B81: 1 | C81: Backup Generator Size (kW) | E81: =INDEX($F81:$H81, ,MATCH($E$80, $F$80:$H$80, 0)) -> 1000 | F81: 1000 | G81: 1000 | H81: 1000 | K81: Examples sourced from past costs for backup power to cover Bridge-to-Wire outage risk events. Island: cost premiums of servicing backup power to islands. High: cost premium of servicing backup power to Eastern Massachusetts and urban areas. Low: cost discount of servicing backup power to Western Massachusetts and rural areas.
C83: Operating Expenses
B84: 2 | D84: Generator Rental Cost, including setup/breakdown ($ / year) | E84: =INDEX($F84:$H84, ,MATCH($E$80, $F$80:$H$80, 0)) -> 100000 | F84: 200000 | G84: 100000 | H84: 32300 | K84: Generator rental costs, including setup and breakdown, correspond to example.
B86: 3 | D86: Days of Usage per year | E86: =INDEX($F86:$H86, ,MATCH($E$80, $F$80:$H$80, 0)) -> 30 | F86: 30 | G86: 30 | H86: 30
B87: 4 | D87: Hours of Usage per day | E87: =INDEX($F87:$H87, ,MATCH($E$80, $F$80:$H$80, 0)) -> 8 | F87: 8 | G87: 8 | H87: 8 | K87: Default assumption that generator is run 8 hours per day to minimize risk of equipment failure
B88: 5 | D88: Fuel Cost ($/hour) | E88: =INDEX($F88:$H88, ,MATCH($E$80, $F$80:$H$80, 0)) -> 0 | F88: 0 | G88: 0 | H88: 107 | K88: Assumed usage based on EDC backup power examples
B89: 6 | D89: Fuel Cost ($ / year) | E89: =INDEX($F89:$H89, ,MATCH($E$80, $F$80:$H$80, 0)) -> 0 | F89: =F87*F88*F86 -> 0 | G89: =G87*G88*G86 -> 0 | H89: =H87*H88*H86 -> 25680 | I89: [3] * [4] * [5] | K89: Fuel costs/hour * Hours/day *days/yr of outages
B91: 7 | C91: Annual Operating Expenses ($ / year) | E91: =INDEX($F91:$H91, ,MATCH($E$80, $F$80:$H$80, 0)) -> 100000 | F91: =SUM(F84,F89) -> 200000 | G91: =SUM(G84,G89) -> 100000 | H91: =SUM(H84,H89) -> 57980 | I91: [2] + [6] | K91: Sum of all operating costs
B93: 8 | C93: Backup Capacity Annualized Marginal Cost ($ / kW-year) | E93: =INDEX($F93:$H93, ,MATCH($E$80, $F$80:$H$80, 0)) -> 100 | F93: =F91/F81 -> 200 | G93: =G91/G81 -> 100 | H93: =H91/H81 -> 57.98 | I93: [7] / [1] | K93: Annual operating costs divided by backup generator size
B97: =Mappings!F6 -> Avoided Backup Energy Storage | F97: Reference | G97: Assumption
B98: 1 | C98: Backup Storage Size (kW) | E98: 500 | G98: Example sourced from past costs for backup storage to cover Bridge-to-Wire outage risk events. 500 kW size includes several 8-hr and 4-hr batteries.
C100: Operating Expenses
B101: 2 | D101: Annual Rental Cost ($ / year) | E101: 105000 | G101: Backup energy storage rental costs, including setup and breakdown costs
B102: 3 | D102: Rental Cost ($ / kW) | E102: =E101/E98 -> 210 | F102: [2] / [1] | G102: Rental cost / battery storage size
B104: 4 | D104: Days of Usage per year | E104: 30 | G104: Default assumption that backup storage is run 8 hours per day to minimize risk of equipment failure
B105: 5 | D105: Hours of Usage per day | E105: 8 | G105: Assumed usage based on EDC backup power examples
B106: 6 | D106: Battery Roundtrip Efficiency | E106: 0.85 | G106: Assumed roundtrip efficiency from charge to dispatch
B107: 7 | D107: Electricity Price ($/kWh) | E107: 0.037 | G107: Assumed average offpeak wholesale price of electricity during summer months. Average price may differ during other seasons.
B108: 8 | D108: Electricity Cost ($ / kW) | E108: =E104*E105/$E$106*$E$107 -> 10.44705882 | F108: [4] * [5] / [6] * [7] | G108: Electricity cost/hour * Hours/day *days/yr of outages / Battery Roundtrip Efficiency
B110: 9 | C110: Backup Capacity Annualized Marginal Cost ($ / kW-year) | E110: =E102+E108 -> 220.4470588 | F110: [3] + [8] | G110: Summed operating costs
B114: =Mappings!F4 -> Weighted Average of Avoided Backup Solutions
C115: Total Bridge-to-Wires Value ($/kW-year) | E115: =(E93*E55)+(E110*E56*SUMIFS($E$51:$E$53, $D$51:$D$53, $E$48)) -> 117.5558824 | G115: Weighted average of all B2W calculations based on selected probability of occurrence
B119: Non-Rate Impact Value Streams
B121: =Mappings!F7 -> Value of Load | F121: Reference | G121: Assumption
C122: ICE Calculator Inputs - Customer Counts | G122: Customer counts depend on Value of Lost Load Customer Risk selection. EDCs will determine risk based on customer make-up at a B2W location.
D123: Residential | E123: =INDEX('ICE Calculator Results'!$L$8:$N$9, MATCH('Bridge to Wires Calculation'!$D123, 'ICE Calculator Results'!$B$8:$B$9, 0), MATCH('Bridge to Wires Calculation'!$E$49, 'ICE Calculator Results'!$L$7:$N$7, 0)) -> 2249176.011
D124: Non-Residential | E124: =INDEX('ICE Calculator Results'!$L$8:$N$9, MATCH('Bridge to Wires Calculation'!$D124, 'ICE Calculator Results'!$B$8:$B$9, 0), MATCH('Bridge to Wires Calculation'!$E$49, 'ICE Calculator Results'!$L$7:$N$7, 0)) -> 54689.01117
C125: ICE Calculator Inputs - Reliability Metrics
D126: SAIFI (IEEE) - Outage events per year | E126: 1 | G126: Assumes one 12-hour outage as an example value
D127: SAIDI (IEEE) - Average outage duration (minutes) | E127: 720 | G127: 12 hours * 60 minutes
D128: CAIDI (IEEE) - Average outage duration per customer (minutes) | E128: 720 | G128: CAIDI = SAIDI/SAIFI
C130: ICE Calculator Results
B131: 1 | D131: Cost Per Event (2025 $) | E131: =SUMIFS(INDEX('ICE Calculator Results'!$N$18:$T$26, , MATCH('Bridge to Wires Calculation'!$D131, 'ICE Calculator Results'!$N$17:$T$17, 0)), 'ICE Calculator Results'!$L$18:$L$26, 'Bridge to Wires Calculation'!$E$49, 'ICE Calculator Results'!$M$18:$M$26, "All Customers") -> 211.6900349 | G131: ICE calculator output - see ICE Calculator Results tab
B132: 2 | D132: Cost Per Average kW (2025 $) | E132: =SUMIFS(INDEX('ICE Calculator Results'!$N$18:$T$26, , MATCH('Bridge to Wires Calculation'!$D132, 'ICE Calculator Results'!$N$17:$T$17, 0)), 'ICE Calculator Results'!$L$18:$L$26, 'Bridge to Wires Calculation'!$E$49, 'ICE Calculator Results'!$M$18:$M$26, "All Customers") -> 68.95271379 | G132: ICE calculator output - see ICE Calculator Results tab
B133: 3 | D133: Cost Per Unserved kWh (2025 $) | E133: =SUMIFS(INDEX('ICE Calculator Results'!$N$18:$T$26, , MATCH('Bridge to Wires Calculation'!$D133, 'ICE Calculator Results'!$N$17:$T$17, 0)), 'ICE Calculator Results'!$L$18:$L$26, 'Bridge to Wires Calculation'!$E$49, 'ICE Calculator Results'!$M$18:$M$26, "All Customers") -> 5.74517452 | G133: ICE calculator output - see ICE Calculator Results tab
B134: 4 | D134: Total Cost of Sustained Interruptions (2025 $) | E134: =SUMIFS(INDEX('ICE Calculator Results'!$N$18:$T$26, , MATCH('Bridge to Wires Calculation'!$D134, 'ICE Calculator Results'!$N$17:$T$17, 0)), 'ICE Calculator Results'!$L$18:$L$26, 'Bridge to Wires Calculation'!$E$49, 'ICE Calculator Results'!$M$18:$M$26, "All Customers") -> 487704305.9 | G134: ICE calculator output - see ICE Calculator Results tab
B136: 5 | C136: Value of Lost Load ($/kW-year) | E136: =E132 -> 68.95271379 | F136: [2]

Sheet EJ Impacts Calculation
B3: Environmental Justice - Non-Rate Impact Value Streams
B6: EJ Participant Adder | G6: Explanation
B7: 1 | C7: EJ Participant adder | G7: Percent adder applied on top of the base Deferral or Bridge to Wires value to increase compensation for qualified Environmental Justice participants
B8: 2 | D8: EJ Participant Adder (%) | E8: 0.2 | G8: e.g. an adder of 20% would mean that qualified EJ participants receive 120% of the base compensation selected for a given location
G9: The initial default value of 20% is based on a review of similar or low-income participant adders in other jurisdictions. Please refer to the report for more detail
B11: Air Quality Adder* | F11: Reference | G11: Explanation
B12: 1a | C12: Air quality impacts of diesel generation
B13: 2a | D13: Diesel emissions factor | E13: Uncontrolled Diesel Industrial Engines | G13: Selection of diesel engine type used for emissions factors
B14: 3a | D14: Air quality health impacts ($/kWh) | E14: =_xlfn.IFS($E$13="Uncontrolled Diesel Industrial Engines", $G$39, $E$13="Large Stationary Diesel Engines", $G$54) -> 0.498011 | F14: COBRA output | G14: Calculated below from COBRA depending on emission factor source; uses High value from COBRA calculator
B15: 4a | D15: Hours of usage per year (hours) | E15: =8*30 -> 240 | G15: Assumes 8 hrs* 30 days/yr
B16: 5a | D16: Probability of Backup Solution being Deployed (without use of DERs) | E16: =IF('Bridge to Wires Calculation'!$E$47 = Mappings!$F$5, 1, IF('Bridge to Wires Calculation'!$E$47= Mappings!$F$4, 'Bridge to Wires Calculation'!$E$55,0)) -> 0.9 | G16: If weighted average is selected for the Bridge to Wires Calculation, this uses the user-input weighting. Otherwise applies 100% to the selected counterfactual backup
B17: 6a | D17: Diesel generation air quality value ($/kW-yr) | E17: =E14*E15*E16 -> 107.570376 | F17: [3a] * [4a]* [5a]
B19: 1b | C19: Air quality impacts of battery storage
B20: 2b | D20: Air quality health impacts ($/kWh) | E20: 0 | G20: Predetermined assumption that avoiding storage provides no air quality impact
B21: 3b | D21: Hours of usage per year (hours) | E21: =E15 -> 240 | G21: =G15 -> Assumes 8 hrs* 30 days/yr
B22: 4b | D22: Probability of Backup Solution being Deployed (without use of DERs) | E22: =IF('Bridge to Wires Calculation'!$E$47 = Mappings!$F$6, 1, IF('Bridge to Wires Calculation'!$E$47 = Mappings!$F$4, 'Bridge to Wires Calculation'!$E$56,0)) -> 0.1 | G22: If weighted average is selected for the Bridge to Wires Calculation, this uses the user-input weighting. Otherwise applies 100% to the selected counterfactual backup
B23: 5b | D23: Battery storage air quality value ($/kW-yr) | E23: =E20*8760*E21*E22 -> 0 | F23: [2b] * 8760 * [3b] * [4b]
B25: 7 | C25: Weighted average air quality impacts ($/kW-yr) | E25: =SUM(E23,E17) -> 107.570376 | F25: [5a] + [5b]
B26: *Only applies to Bridge-to-Wires value
B29: Diesel Generation - Emissions Factors for Uncontrolled Diesel Industrial Engines
D32: Table 3.3-1: Emissions Factors for Uncontrolled Diesel Industrial Engines | E32: Emission Factor (lb/hp-hr) | F32: Emission Factor (lb/kWh) | G32: Emission Factor (US tons/kWh)
D33: NOx | E33: 0.031 | F33: =E33*0.7456998714 -> 0.02311669601 | G33: =0.0005*F33 -> 1.155834801e-05
D34: SOx | E34: 0.00205 | F34: =E34*0.7456998714 -> 0.001528684736 | G34: =0.0005*F34 -> 7.643423682e-07
D36: COBRA Tool | E36: Emission Factor (US tons/GWh) COBRA Inputs | F36: COBRA Results ($2025/GWh) (High) | G36: Health Impacts ($2025/kWh) | H36: Health Impacts ($2025/kW-yr)
D37: NOx | E37: =G33*1000000 -> 11.55834801
D38: SOx | E38: =G34*1000000 -> 0.7643423682
D39: All Pollutants | F39: 498011 | G39: =F39/1000000 -> 0.498011 | H39: =G39*$E$15 -> 119.52264
F40: COBRA output
B43: Diesel Generation - Emissions Factors for Large Stationary Diesel Engines
D46: Table 3.4-1: Emissions Factors for Large Stationary Diesel Engines | E46: Emission Factor (lb/hp-hr) | F46: Emission Factor (lb/kWh) | G46: Emission Factor (US tons/kWh)
D47: NOx | E47: 0.024 | F47: =E47*0.7456998714 -> 0.01789679691 | G47: =0.0005*F47 -> 8.948398457e-06
D48: SOx | E48: =(0.00809)*0.05 -> 0.0004045 | F48: =E48*0.7456998714 -> 0.000301635598 | G48: =0.0005*F48 -> 1.50817799e-07
D50: COBRA Tool | E50: Emission Factor (US tons/GWh) COBRA Inputs | F50: COBRA Results ($2025/GWh) | G50: Health Impacts ($2025/kWh) | H50: Health Impacts ($2025/kW-yr)
D51: NOx | E51: =G47*1000000 -> 8.948398457
D52: SOx | E52: =G48*1000000 -> 0.150817799
D54: All Pollutants - Low | F54: 310360 | G54: =F54/1000000 -> 0.31036 | H54: =G54*$E$15 -> 74.4864
D55: All Pollutants - High | F55: 373512 | G55: =F55/1000000 -> 0.373512 | H55: =G55*$E$15 -> 89.64288
F56: COBRA output

Sheet ICE Calculator Results
B2: ICE Calculator Inputs and Outputs for Value of Lost Load
B3: Users should not edit this tab directly; this is for informational purposes only. Changes to any values on this tab will require re-running the ICE Calculator to determine applicable inputs.
B5: EDC Customer Counts | H5: Assumed Customer % | L5: Assumed Statewide Customer Count - ICE Inputs
C7: Unitil | D7: National Grid | E7: Eversource | F7: Total EDC | H7: Low | I7: Medium | J7: High | L7: Low | M7: Medium | N7: High
B8: Residential | C8: 26386 | D8: 1210955 | E8: 1362556 | F8: =SUM(C8,D8,E8) -> 2599897 | H8: 0.95 | I8: =F8/$F$10 -> 0.865101968 | J8: 0.7 | L8: =H8*$F8 -> 2469902.15 | M8: =I8*$F8 -> 2249176.011 | N8: 1819927.9
B9: Non-Residential | C9: 4166 | D9: 183193 | E9: 218051 | F9: =SUM(C9,D9,E9) -> 405410 | H9: 0.05 | I9: =F9/$F$10 -> 0.134898032 | J9: 0.3 | L9: =H9*$F9 -> 20270.5 | M9: 54689.01117 | N9: 121623
B10: Total | C10: =SUM(C8:C9) -> 30552 | D10: =SUM(D8:D9) -> 1394148 | E10: 1580607 | F10: =SUM(C10:E10) -> 3005307 | H10: =SUM(H8:H9) -> 1 | I10: =SUM(I8:I9) -> 1 | J10: =SUM(J8:J9) -> 1 | L10: 3005307 | M10: 3005307 | N10: 3005307
B11: Non-Residential includes both Commercial and Industrial customers
B14: ICE Calculator 2.0 Outputs - EDC Specific | L14: ICE Calculator 2.0 Outputs - Statewide
B16: EDC | C16: Sector | L16: Value Range | M16: Sector
D17: No. of Customers | E17: Cost Per Event (2025 $) | F17: Cost Per Average kW (2025 $) | G17: Cost Per Unserved kWh (2025 $) | H17: Minute Interrupted (2025$) | I17: Annual Cost (2025$) | J17: Total Cost of Sustained Interruptions (2025 $) | N17: No. of Customers | O17: Cost Per Event (2025 $) | P17: Cost Per Average kW (2025 $) | Q17: Cost Per Unserved kWh (2025 $) | R17: Minute Interrupted (2025$) | S17: Annual Cost (2025$) | T17: Total Cost of Sustained Interruptions (2025 $)
B18: Eversource | C18: Residential | D18: 1362556 | E18: 36.51 | F18: 46.52423211 | G18: 3.87613438 | H18: 0.05309773124 | I18: 36.51 | J18: 49749311.62 | L18: Low | M18: Residential | N18: 2469902 | O18: 36.51 | P18: 46.52423211 | Q18: 3.87613438 | R18: 0.05309773124 | S18: 36.51 | T18: 90180458.1
B19: Eversource | C19: Non-Residential | D19: 218051 | E19: 7416.170742 | F19: 991.0691536 | G19: 82.58821117 | H19: 10.30095986 | I19: 7416.170742 | J19: 1617103366 | L19: Low | M19: Non-Residential | N19: 20271 | O19: 7416.170742 | P19: 991.0691536 | Q19: 82.58821117 | R19: 10.30095986 | S19: 7416.170742 | T19: 150333189.7
B20: Eversource | C20: All Customers | D20: 1580607 | E20: 1054.563421 | F20: 176.8260646 | G20: 14.73993019 | H20: 1.465497382 | I20: 1054.563421 | J20: 1666852678 | L20: Low | M20: All Customers | N20: 2490173 | O20: 96.58477312 | P20: 54.2127836 | Q20: 4.513307155 | R20: 0.1380541012 | S20: 96.58477312 | T20: 240513647.8
B21: National Grid | C21: Residential | D21: 1210955 | E21: 36.51 | F21: 46.52423211 | G21: 3.87613438 | H21: 0.05309773124 | I21: 36.51 | J21: 44214092.97 | L21: Medium | M21: Residential | N21: 2249176 | O21: 36.51 | P21: 46.52423211 | Q21: 3.87613438 | R21: 0.05309773124 | S21: 36.51 | T21: 82121364.34
B22: National Grid | C22: Non-Residential | D22: 183193 | E22: 7416.170742 | F22: 991.0691536 | G22: 82.58821117 | H22: 10.30095986 | I22: 7416.170742 | J22: 1358590499 | L22: Medium | M22: Non-Residential | N22: 54689 | O22: 7416.170742 | P22: 991.0691536 | Q22: 82.58821117 | R22: 10.30095986 | S22: 7416.170742 | T22: 405582941.6
B23: National Grid | C23: All Customers | D23: 1394148 | E23: 1006.212627 | F23: 170.6454887 | G23: 14.21957243 | H23: 1.401780105 | I23: 1006.212627 | J23: 1402804592 | L23: Medium | M23: All Customers | N23: 2303865 | O23: 211.6900349 | P23: 68.95271379 | Q23: 5.74517452 | R23: 0.2973472949 | S23: 211.6900349 | T23: 487704305.9
B24: Unitil | C24: Residential | D24: 26386 | E24: 36.51 | F24: 46.52423211 | G24: 3.87613438 | H24: 0.05309773124 | I24: 36.51 | J24: 963399.1825 | L24: High | M24: Residential | N24: 1819928 | O24: 36.51 | P24: 46.52423211 | Q24: 3.87613438 | R24: 0.05309773124 | S24: 36.51 | T24: 66448766.29
B25: Unitil | C25: Non-Residential | D25: 4166 | E25: 7416.170742 | F25: 991.0691536 | G25: 82.58821117 | H25: 10.30095986 | I25: 7416.170742 | J25: 30895765.78 | L25: High | M25: Non-Residential | N25: 121623 | O25: 7416.170742 | P25: 991.0691536 | Q25: 82.58821117 | R25: 10.30095986 | S25: 7416.170742 | T25: 901976889.4
B26: Unitil | C26: All Customers | D26: 30552 | E26: 1042.786344 | F26: 175.318089 | G26: 14.61249564 | H26: 1.44425829 | I26: 1042.786344 | J26: 31859164.96 | L26: High | M26: All Customers | N26: 1941551 | O26: 498.7894677 | P26: 105.6963438 | Q26: 8.803603839 | R26: 0.6902705061 | S26: 498.7894677 | T26: 968425655.7

Sheet Reference Utility Data
C2: Electricity Sales | D2: Line Loss
C3: Total Sales MWh) | D3: Average Technical Line Loss | E3: Marginal Line Loss*
B4: EDC Average | C4: =AVERAGE(C5:C7) -> 8128978.333 | D4: =SUMPRODUCT($C$5:$C$7, D$5:D$7)/SUM($C$5:$C$7) -> 0.06513594036 | E4: =SUMPRODUCT($C$5:$C$7, E$5:E$7)/SUM($C$5:$C$7) -> 0.09770391054
B5: Unitil | C5: 431532 | D5: 0.0333 | E5: =D5*(1.5) -> 0.04995
B6: Eversource | C6: 22584860 | D6: 0.065 | E6: =D6*(1.5) -> 0.0975
B7: National Grid (combined) | C7: 1370543 | D7: =AVERAGE(D8:D9) -> 0.0774 | E7: =D7*(1.5) -> 0.1161
B8: National Grid: Massachusetts Electric Co. | C8: 1356226 | D8: 0.0697
B9: National Grid: Nantucket Electric Co. | C9: 14317 | D9: 0.0851
C10: *sourced from EIA Form 816, year 2023 | E10: *calculated as Average Technical Line Loss x 1.5

Sheet Mappings
B3: Valuation | C3: EDCs | D3: Deferral Value Selection | E3: B2W Value Selection | F3: B2W Calculation Selection | G3: Diesel Generator Emissions Factor Selection | H3: Capacity Selection | I3: Compensation Selection | J3: Yes/No
B4: Deferral | C4: Eversource | D4: User Input | E4: High | F4: Weighted Average of Avoided Backup Solutions | G4: Uncontrolled Diesel Industrial Engines | H4: MW needed | I4: % of compensation | J4: Yes | K4: 1
B5: Bridge-to-Wires | C5: National Grid | D5: Example 1 | E5: Medium | F5: Avoided Backup Diesel Generator | G5: Large Stationary Diesel Engines | H5: Technology Enrolled | I5: Fixed value | J5: No | K5: 2
C6: Unitil | D6: Example 2 | E6: Low | F6: Avoided Backup Energy Storage | K6: 3
D7: Example 3 | F7: Value of Load | K7: 4
K8: 5
K9: 6
K10: 7
K11: 8
K12: 9
K13: 10
